{"text_format":"1","workbook":"xlsx","n_sheets":5,"sheets":["Biztosítási termékismertető","Adatközlő","Ajánlat1","Ajánlat2","Tevékenységi lista"],"not_rendered":{"charts":0,"images":15,"macros":1,"external_links":0,"defined_names":75,"comments":0,"pivot_tables":0},"unopened":[],"bounds":{"document_bytes":16777216,"sheet_cells":100000,"rows_first":2000,"rows_last":500,"rows_between":2000,"halvings":0,"cell_chars":16384,"cell_head_chars":4096},"cells_cut":0,"cells_raw":0,"read":"whole","date_system":"1900"}

{"sheet":"Biztosítási termékismertető","index":0,"n_rows":0,"n_cols":0,"rows_kept":0,"cut":false,"hidden":false,"merged":[]}

{"sheet":"Adatközlő","index":1,"n_rows":131,"n_cols":14,"rows_kept":131,"cut":false,"hidden":false,"merged":[[3,3,4,3],[1,1,1,3],[3,1,4,1],[3,2,4,2],[3,5,3,6]]}
[null,"Szakág kereső: \n",""]
[null,"Adatközlő",null,null,null,null,null,null,null,null,null,null,null,1]
[null,null,"",null,null,null,null,null,null,null,null,"Volumenengedmény"]
[null,"Biztosított személyek száma","Szakág",null,null,"Limit",null,null,null,null,null,"fő","%"]
[null,null,null,null,null,"5/15","10/20",null,null,null,null,1,1]
[{"$f":"IF(B6>0,COUNTIF($I$6:I6,1),\"\")","v":""},null,"addiktológia (szenvedélybetegségek orvoslása)",null,null,13500,16000,{"$f":"B6*IF(Ajánlat1!$J$139=2,Adatközlő!G6,Adatközlő!F6)","v":0},{"$f":"IF(B6>0,1,\"\")","v":""},null,null,2,0.94]
[{"$f":"IF(B7>0,COUNTIF($I$6:I7,1),\"\")","v":""},null,"egészségbiztosítás",null,null,13500,16000,{"$f":"B7*IF(Ajánlat1!$J$139=2,Adatközlő!G7,Adatközlő!F7)","v":0},{"$f":"IF(B7>0,1,\"\")","v":""},null,null,3,0.92]
[{"$f":"IF(B8>0,COUNTIF($I$6:I8,1),\"\")","v":""},null,"foniátria (a beszédhangok képzési zavarának gyógyítása)",null,null,13500,16000,{"$f":"B8*IF(Ajánlat1!$J$139=2,Adatközlő!G8,Adatközlő!F8)","v":0},"",null,null,4,0.91]
[{"$f":"IF(B9>0,COUNTIF($I$6:I9,1),\"\")","v":""},null,"honvéd / katasztrófa orvostan",null,null,13500,16000,{"$f":"B9*IF(Ajánlat1!$J$139=2,Adatközlő!G9,Adatközlő!F9)","v":0},"",null,null,5,0.9]
[{"$f":"IF(B10>0,COUNTIF($I$6:I10,1),\"\")","v":""},null,"igazságügyi orvostan",null,null,13500,16000,{"$f":"B10*IF(Ajánlat1!$J$139=2,Adatközlő!G10,Adatközlő!F10)","v":0},"",null,null,6,0.88]
[{"$f":"IF(B11>0,COUNTIF($I$6:I11,1),\"\")","v":""},null,"igazságügyi elmeorvostan",null,null,13500,16000,{"$f":"B11*IF(Ajánlat1!$J$139=2,Adatközlő!G11,Adatközlő!F11)","v":0},"",null,null,7,0.86]
[{"$f":"IF(B12>0,COUNTIF($I$6:I12,1),\"\")","v":""},null,"immunológia",null,null,13500,16000,{"$f":"B12*IF(Ajánlat1!$J$139=2,Adatközlő!G12,Adatközlő!F12)","v":0},"",null,null,8,0.84]
[{"$f":"IF(B13>0,COUNTIF($I$6:I13,1),\"\")","v":""},null,"klinikai laboratóriumi vizsgálatok",null,null,13500,16000,{"$f":"B13*IF(Ajánlat1!$J$139=2,Adatközlő!G13,Adatközlő!F13)","v":0},"",null,null,9,0.82000000000000006]
[{"$f":"IF(B14>0,COUNTIF($I$6:I14,1),\"\")","v":""},null,"klinikai genetika",null,null,13500,16000,{"$f":"B14*IF(Ajánlat1!$J$139=2,Adatközlő!G14,Adatközlő!F14)","v":0},"",null,null,10,0.8]
[{"$f":"IF(B15>0,COUNTIF($I$6:I15,1),\"\")","v":""},null,"klinikai szakpszichológia (nem orvos)",null,null,13500,16000,{"$f":"B15*IF(Ajánlat1!$J$139=2,Adatközlő!G15,Adatközlő!F15)","v":0},"",null,null,11,0.79]
[{"$f":"IF(B16>0,COUNTIF($I$6:I16,1),\"\")","v":""},null,"kórbonctan-kórszövettan",null,null,13500,16000,{"$f":"B16*IF(Ajánlat1!$J$139=2,Adatközlő!G16,Adatközlő!F16)","v":0},"",null,null,12,0.79]
[{"$f":"IF(B17>0,COUNTIF($I$6:I17,1),\"\")","v":""},null,"laboratóriumi haematológia",null,null,13500,16000,{"$f":"B17*IF(Ajánlat1!$J$139=2,Adatközlő!G17,Adatközlő!F17)","v":0},"",null,null,13,0.78]
[{"$f":"IF(B18>0,COUNTIF($I$6:I18,1),\"\")","v":""},null,"neuropatológia (idegkórtan)",null,null,13500,16000,{"$f":"B18*IF(Ajánlat1!$J$139=2,Adatközlő!G18,Adatközlő!F18)","v":0},"",null,null,14,0.77]
[{"$f":"IF(B19>0,COUNTIF($I$6:I19,1),\"\")","v":""},null,"neurológia (ideggyógyászat, gyermek és felnőtt)",null,null,13500,16000,{"$f":"B19*IF(Ajánlat1!$J$139=2,Adatközlő!G19,Adatközlő!F19)","v":0},"",null,null,15,0.77]
[{"$f":"IF(B20>0,COUNTIF($I$6:I20,1),\"\")","v":""},null,"molekuláris genetikai diagnosztika",null,null,13500,16000,{"$f":"B20*IF(Ajánlat1!$J$139=2,Adatközlő!G20,Adatközlő!F20)","v":0},"",null,null,16,0.76]
[{"$f":"IF(B21>0,COUNTIF($I$6:I21,1),\"\")","v":""},null,"orvosi mikrobiológia",null,null,13500,16000,{"$f":"B21*IF(Ajánlat1!$J$139=2,Adatközlő!G21,Adatközlő!F21)","v":0},"",null,null,17,0.75]
[{"$f":"IF(B22>0,COUNTIF($I$6:I22,1),\"\")","v":""},null,"orvosi laboratóriumi diagnosztika",null,null,13500,16000,{"$f":"B22*IF(Ajánlat1!$J$139=2,Adatközlő!G22,Adatközlő!F22)","v":0},"",null,null,18,0.75]
[{"$f":"IF(B23>0,COUNTIF($I$6:I23,1),\"\")","v":""},null,"sugárbiológia, sugár-egészségügy",null,null,13500,16000,{"$f":"B23*IF(Ajánlat1!$J$139=2,Adatközlő!G23,Adatközlő!F23)","v":0},"",null,null,19,0.75]
[{"$f":"IF(B24>0,COUNTIF($I$6:I24,1),\"\")","v":""},null,"társadalom-orvostan",null,null,13500,16000,{"$f":"B24*IF(Ajánlat1!$J$139=2,Adatközlő!G24,Adatközlő!F24)","v":0},"",null,null,20,0.75]
[{"$f":"IF(B25>0,COUNTIF($I$6:I25,1),\"\")","v":""},null,"trópusi betegségek orvoslása",null,null,13500,16000,{"$f":"B25*IF(Ajánlat1!$J$139=2,Adatközlő!G25,Adatközlő!F25)","v":0},""]
[null,"2. csoport:"]
[{"$f":"IF(B27>0,COUNTIF($I$6:I27,1),\"\")","v":""},null,"allergologia",null,null,19000,23500,{"$f":"B27*IF(Ajánlat1!$J$139=2,Adatközlő!G27,Adatközlő!F27)","v":0},"",null,"Orvos van?"]
[{"$f":"IF(B28>0,COUNTIF($I$6:I28,1),\"\")","v":""},null,"audiológia (hallástan)",null,null,19000,23500,{"$f":"B28*IF(Ajánlat1!$J$139=2,Adatközlő!G28,Adatközlő!F28)","v":0},"",null,{"$f":"IF(OR(SUM(I6:I78)>0,SUM(B128:B129)>0),1,0)","v":0}]
[{"$f":"IF(B29>0,COUNTIF($I$6:I29,1),\"\")","v":""},null,"endokrinológia (hormonrendszer orvoslása)",null,null,19000,23500,{"$f":"B29*IF(Ajánlat1!$J$139=2,Adatközlő!G29,Adatközlő!F29)","v":0},""]
[{"$f":"IF(B30>0,COUNTIF($I$6:I30,1),\"\")","v":""},null,"fertőző betegségek orvoslása",null,null,19000,23500,{"$f":"B30*IF(Ajánlat1!$J$139=2,Adatközlő!G30,Adatközlő!F30)","v":0},""]
[{"$f":"IF(B31>0,COUNTIF($I$6:I31,1),\"\")","v":""},null,"fizioterápia",null,null,19000,23500,{"$f":"B31*IF(Ajánlat1!$J$139=2,Adatközlő!G31,Adatközlő!F31)","v":0},""]
[{"$f":"IF(B32>0,COUNTIF($I$6:I32,1),\"\")","v":""},null,"fizikális medicina és rehabilitációs orvoslás",null,null,19000,23500,{"$f":"B32*IF(Ajánlat1!$J$139=2,Adatközlő!G32,Adatközlő!F32)","v":0},""]
[{"$f":"IF(B33>0,COUNTIF($I$6:I33,1),\"\")","v":""},null,"gasztroenterológia (emésztőszervi megbetegedések, gyermek és felnőtt)",null,null,19000,23500,{"$f":"B33*IF(Ajánlat1!$J$139=2,Adatközlő!G33,Adatközlő!F33)","v":0},""]
[{"$f":"IF(B34>0,COUNTIF($I$6:I34,1),\"\")","v":""},null,"geriátria (időskori megbetegedések orvoslása)",null,null,19000,23500,{"$f":"B34*IF(Ajánlat1!$J$139=2,Adatközlő!G34,Adatközlő!F34)","v":0},""]
[{"$f":"IF(B35>0,COUNTIF($I$6:I35,1),\"\")","v":""},null,"háziorvos",null,null,19000,23500,{"$f":"B35*IF(Ajánlat1!$J$139=2,Adatközlő!G35,Adatközlő!F35)","v":0},""]
[{"$f":"IF(B36>0,COUNTIF($I$6:I36,1),\"\")","v":""},null,"házi gyermekorvos",null,null,19000,23500,{"$f":"B36*IF(Ajánlat1!$J$139=2,Adatközlő!G36,Adatközlő!F36)","v":0},""]
[{"$f":"IF(B37>0,COUNTIF($I$6:I37,1),\"\")","v":""},null,"haematológia (vérképző rendszer megbetegedései)",null,null,19000,23500,{"$f":"B37*IF(Ajánlat1!$J$139=2,Adatközlő!G37,Adatközlő!F37)","v":0},""]
[{"$f":"IF(B38>0,COUNTIF($I$6:I38,1),\"\")","v":""},null,"üzemorvostan",null,null,19000,23500,{"$f":"B38*IF(Ajánlat1!$J$139=2,Adatközlő!G38,Adatközlő!F38)","v":0},""]
[{"$f":"IF(B39>0,COUNTIF($I$6:I39,1),\"\")","v":""},null,"infektológia (fertőző betegségek orvoslása)",null,null,19000,23500,{"$f":"B39*IF(Ajánlat1!$J$139=2,Adatközlő!G39,Adatközlő!F39)","v":0},""]
[{"$f":"IF(B40>0,COUNTIF($I$6:I40,1),\"\")","v":""},null,"iskola-egészségügy",null,null,19000,23500,{"$f":"B40*IF(Ajánlat1!$J$139=2,Adatközlő!G40,Adatközlő!F40)","v":0},""]
[{"$f":"IF(B41>0,COUNTIF($I$6:I41,1),\"\")","v":""},null,"izotópdiagnosztika",null,null,19000,23500,{"$f":"B41*IF(Ajánlat1!$J$139=2,Adatközlő!G41,Adatközlő!F41)","v":0},""]
[{"$f":"IF(B42>0,COUNTIF($I$6:I42,1),\"\")","v":""},null,"klinikai immunológia",null,null,19000,23500,{"$f":"B42*IF(Ajánlat1!$J$139=2,Adatközlő!G42,Adatközlő!F42)","v":0},""]
[{"$f":"IF(B43>0,COUNTIF($I$6:I43,1),\"\")","v":""},null,"mozgásszervi rehabilitáció",null,null,19000,23500,{"$f":"B43*IF(Ajánlat1!$J$139=2,Adatközlő!G43,Adatközlő!F43)","v":0},""]
[{"$f":"IF(B44>0,COUNTIF($I$6:I44,1),\"\")","v":""},null,"közegészségügy / népegészségügy, megelőző orvostan",null,null,19000,23500,{"$f":"B44*IF(Ajánlat1!$J$139=2,Adatközlő!G44,Adatközlő!F44)","v":0},""]
[{"$f":"IF(B45>0,COUNTIF($I$6:I45,1),\"\")","v":""},null,"járványügy, járványügyi laboratóriumi vizsgálatok",null,null,19000,23500,{"$f":"B45*IF(Ajánlat1!$J$139=2,Adatközlő!G45,Adatközlő!F45)","v":0},""]
[{"$f":"IF(B46>0,COUNTIF($I$6:I46,1),\"\")","v":""},null,"ortopédia",null,null,19000,23500,{"$f":"B46*IF(Ajánlat1!$J$139=2,Adatközlő!G46,Adatközlő!F46)","v":0},""]
[{"$f":"IF(B47>0,COUNTIF($I$6:I47,1),\"\")","v":""},null,"orvosi rehabilitáció",null,null,19000,23500,{"$f":"B47*IF(Ajánlat1!$J$139=2,Adatközlő!G47,Adatközlő!F47)","v":0},""]
[{"$f":"IF(B48>0,COUNTIF($I$6:I48,1),\"\")","v":""},null,"oxyológia (mentőorvostan)",null,null,19000,23500,{"$f":"B48*IF(Ajánlat1!$J$139=2,Adatközlő!G48,Adatközlő!F48)","v":0},""]
[{"$f":"IF(B49>0,COUNTIF($I$6:I49,1),\"\")","v":""},null,"pszichiátria (gyermek és felnőtt)",null,null,19000,23500,{"$f":"B49*IF(Ajánlat1!$J$139=2,Adatközlő!G49,Adatközlő!F49)","v":0},""]
[{"$f":"IF(B50>0,COUNTIF($I$6:I50,1),\"\")","v":""},null,"pszichoterápia",null,null,19000,23500,{"$f":"B50*IF(Ajánlat1!$J$139=2,Adatközlő!G50,Adatközlő!F50)","v":0},""]
[{"$f":"IF(B51>0,COUNTIF($I$6:I51,1),\"\")","v":""},null,"pulmonologia (tüdőgyógyászat, légúti megbetegedések orvoslása)",null,null,19000,23500,{"$f":"B51*IF(Ajánlat1!$J$139=2,Adatközlő!G51,Adatközlő!F51)","v":0},""]
[{"$f":"IF(B52>0,COUNTIF($I$6:I52,1),\"\")","v":""},null,"repülőorvostan",null,null,19000,23500,{"$f":"B52*IF(Ajánlat1!$J$139=2,Adatközlő!G52,Adatközlő!F52)","v":0},""]
[{"$f":"IF(B53>0,COUNTIF($I$6:I53,1),\"\")","v":""},null,"reumatológia",null,null,19000,23500,{"$f":"B53*IF(Ajánlat1!$J$139=2,Adatközlő!G53,Adatközlő!F53)","v":0},""]
[{"$f":"IF(B54>0,COUNTIF($I$6:I54,1),\"\")","v":""},null,"sportorvostan",null,null,19000,23500,{"$f":"B54*IF(Ajánlat1!$J$139=2,Adatközlő!G54,Adatközlő!F54)","v":0},""]
[{"$f":"IF(B55>0,COUNTIF($I$6:I55,1),\"\")","v":""},null,"sürgősségi orvostan",null,null,19000,23500,{"$f":"B55*IF(Ajánlat1!$J$139=2,Adatközlő!G55,Adatközlő!F55)","v":0},""]
[{"$f":"IF(B56>0,COUNTIF($I$6:I56,1),\"\")","v":""},null,"transzfuziológia",null,null,19000,23500,{"$f":"B56*IF(Ajánlat1!$J$139=2,Adatközlő!G56,Adatközlő!F56)","v":0},""]
[null,"3. csoport:"]
[{"$f":"IF(B58>0,COUNTIF($I$6:I58,1),\"\")","v":""},null,"általános orvos",null,null,33500,40000,{"$f":"B58*IF(Ajánlat1!$J$139=2,Adatközlő!G58,Adatközlő!F58)","v":0},""]
[{"$f":"IF(B59>0,COUNTIF($I$6:I59,1),\"\")","v":""},null,"andrológia (férfi betegségek orvoslása)",null,null,33500,40000,{"$f":"B59*IF(Ajánlat1!$J$139=2,Adatközlő!G59,Adatközlő!F59)","v":0},""]
[{"$f":"IF(B60>0,COUNTIF($I$6:I60,1),\"\")","v":""},null,"belgyógyász",null,null,33500,40000,{"$f":"B60*IF(Ajánlat1!$J$139=2,Adatközlő!G60,Adatközlő!F60)","v":0},""]
[{"$f":"IF(B61>0,COUNTIF($I$6:I61,1),\"\")","v":""},null,"bőrgyógyász",null,null,33500,40000,{"$f":"B61*IF(Ajánlat1!$J$139=2,Adatközlő!G61,Adatközlő!F61)*IF(D61=\"Kérem\",1.8,1)","v":0},""]
[{"$f":"IF(B62>0,COUNTIF($I$6:I62,1),\"\")","v":""},null,"bőrgyógyász egynapos sebészettel",null,null,{"$f":"F61*1.8","v":60300},{"$f":"G61*1.8","v":72000},{"$f":"B62*IF(Ajánlat1!$J$139=2,Adatközlő!G62,Adatközlő!F62)*IF(D62=\"Kérem\",1.8,1)","v":0},""]
[{"$f":"IF(B63>0,COUNTIF($I$6:I63,1),\"\")","v":""},null,"cytopatológia (kórszövettan)",null,null,33500,40000,{"$f":"B63*IF(Ajánlat1!$J$139=2,Adatközlő!G63,Adatközlő!F63)","v":0},""]
[{"$f":"IF(B64>0,COUNTIF($I$6:I64,1),\"\")","v":""},null,"csecsemő-gyermekgyógyász",null,null,33500,40000,{"$f":"B64*IF(Ajánlat1!$J$139=2,Adatközlő!G64,Adatközlő!F64)","v":0},""]
[{"$f":"IF(B65>0,COUNTIF($I$6:I65,1),\"\")","v":""},null,"diabetológus",null,null,33500,40000,{"$f":"B65*IF(Ajánlat1!$J$139=2,Adatközlő!G65,Adatközlő!F65)","v":0},""]
[{"$f":"IF(B66>0,COUNTIF($I$6:I66,1),\"\")","v":""},null,"fül-orr-gégész (csecsemő, gyermek, felnőtt)",null,null,33500,40000,{"$f":"B66*IF(Ajánlat1!$J$139=2,Adatközlő!G66,Adatközlő!F66)","v":0},""]
[{"$f":"IF(B67>0,COUNTIF($I$6:I67,1),\"\")","v":""},null,"gyermeknőgyógyászat",null,null,33500,40000,{"$f":"B67*IF(Ajánlat1!$J$139=2,Adatközlő!G67,Adatközlő!F67)","v":0},""]
[{"$f":"IF(B68>0,COUNTIF($I$6:I68,1),\"\")","v":""},null,"kardiológus (csecsemő, gyermek, felnőtt)",null,null,33500,40000,{"$f":"B68*IF(Ajánlat1!$J$139=2,Adatközlő!G68,Adatközlő!F68)","v":0},""]
[{"$f":"IF(B69>0,COUNTIF($I$6:I69,1),\"\")","v":""},null,"neonatológia (újszülött–gyógyászat)",null,null,33500,40000,{"$f":"B69*IF(Ajánlat1!$J$139=2,Adatközlő!G69,Adatközlő!F69)","v":0},""]
[{"$f":"IF(B70>0,COUNTIF($I$6:I70,1),\"\")","v":""},null,"neuroradiológia (képalkotó eljárások)",null,null,33500,40000,{"$f":"B70*IF(Ajánlat1!$J$139=2,Adatközlő!G70,Adatközlő!F70)","v":0},""]
[{"$f":"IF(B71>0,COUNTIF($I$6:I71,1),\"\")","v":""},null,"onkológia",null,null,33500,40000,{"$f":"B71*IF(Ajánlat1!$J$139=2,Adatközlő!G71,Adatközlő!F71)","v":0},""]
[{"$f":"IF(B72>0,COUNTIF($I$6:I72,1),\"\")","v":""},null,"radiológia (gyermek és felnőtt)",null,null,33500,40000,{"$f":"B72*IF(Ajánlat1!$J$139=2,Adatközlő!G72,Adatközlő!F72)","v":0},""]
[{"$f":"IF(B73>0,COUNTIF($I$6:I73,1),\"\")","v":""},null,"röntgenológia",null,null,33500,40000,{"$f":"B73*IF(Ajánlat1!$J$139=2,Adatközlő!G73,Adatközlő!F73)","v":0},""]
[{"$f":"IF(B74>0,COUNTIF($I$6:I74,1),\"\")","v":""},null,"sugárterápia",null,null,33500,40000,{"$f":"B74*IF(Ajánlat1!$J$139=2,Adatközlő!G74,Adatközlő!F74)","v":0},{"$f":"IF(B74>0,1,\"\")","v":""}]
[{"$f":"IF(B75>0,COUNTIF($I$6:I75,1),\"\")","v":""},null,"szemészet (gyermek és felnőtt)",null,null,33500,40000,{"$f":"B75*IF(Ajánlat1!$J$139=2,Adatközlő!G75,Adatközlő!F75)*IF(D75=\"Kérem\",1.8,1)","v":0},""]
[{"$f":"IF(B76>0,COUNTIF($I$6:I76,1),\"\")","v":""},null,"szemészet (gyermek és felnőtt) egynapos sebészettel",null,null,{"$f":"F75*1.8","v":60300},{"$f":"G75*1.8","v":72000},{"$f":"B76*IF(Ajánlat1!$J$139=2,Adatközlő!G76,Adatközlő!F76)*IF(D76=\"Kérem\",1.8,1)","v":0},""]
[{"$f":"IF(B77>0,COUNTIF($I$6:I77,1),\"\")","v":""},null,"ultrahang diagnoszta",null,null,33500,40000,{"$f":"B77*IF(Ajánlat1!$J$139=2,Adatközlő!G77,Adatközlő!F77)","v":0},""]
[{"$f":"IF(B78>0,COUNTIF($I$6:I78,1),\"\")","v":""},null,"urológia",null,null,33500,40000,{"$f":"B78*IF(Ajánlat1!$J$139=2,Adatközlő!G78,Adatközlő!F78)","v":0},""]
[null,"Egészségügyi szakszemélyzet:"]
[{"$f":"IF(B80>0,COUNTIF($I$6:I80,1),\"\")","v":""},null,"asszisztens",null,null,1500,1800,{"$f":"B80*IF($K$28=1,IF(Ajánlat1!$J$139=2,Adatközlő!G80,Adatközlő!F80),IF(Ajánlat1!$J$139=2,Adatközlő!$G$131,Adatközlő!$F$131))","v":0},""]
[{"$f":"IF(B81>0,COUNTIF($I$6:I81,1),\"\")","v":""},null,"ápoló",null,null,1500,1800,{"$f":"B81*IF($K$28=1,IF(Ajánlat1!$J$139=2,Adatközlő!G81,Adatközlő!F81),IF(Ajánlat1!$J$139=2,Adatközlő!$G$131,Adatközlő!$F$131))","v":0},""]
[{"$f":"IF(B82>0,COUNTIF($I$6:I82,1),\"\")","v":""},null,"betegszállító",null,null,1500,1800,{"$f":"B82*IF($K$28=1,IF(Ajánlat1!$J$139=2,Adatközlő!G82,Adatközlő!F82),IF(Ajánlat1!$J$139=2,Adatközlő!$G$131,Adatközlő!$F$131))","v":0},""]
[{"$f":"IF(B83>0,COUNTIF($I$6:I83,1),\"\")","v":""},null,"boncmester",null,null,1500,1800,{"$f":"B83*IF($K$28=1,IF(Ajánlat1!$J$139=2,Adatközlő!G83,Adatközlő!F83),IF(Ajánlat1!$J$139=2,Adatközlő!$G$131,Adatközlő!$F$131))","v":0},""]
[{"$f":"IF(B84>0,COUNTIF($I$6:I84,1),\"\")","v":""},null,"dietetikus",null,null,1500,1800,{"$f":"B84*IF($K$28=1,IF(Ajánlat1!$J$139=2,Adatközlő!G84,Adatközlő!F84),IF(Ajánlat1!$J$139=2,Adatközlő!$G$131,Adatközlő!$F$131))","v":0},""]
[{"$f":"IF(B85>0,COUNTIF($I$6:I85,1),\"\")","v":""},null,"eü. ellenőr",null,null,1500,1800,{"$f":"B85*IF($K$28=1,IF(Ajánlat1!$J$139=2,Adatközlő!G85,Adatközlő!F85),IF(Ajánlat1!$J$139=2,Adatközlő!$G$131,Adatközlő!$F$131))","v":0},""]
[{"$f":"IF(B86>0,COUNTIF($I$6:I86,1),\"\")","v":""},null,"eü. szakoktató",null,null,1500,1800,{"$f":"B86*IF($K$28=1,IF(Ajánlat1!$J$139=2,Adatközlő!G86,Adatközlő!F86),IF(Ajánlat1!$J$139=2,Adatközlő!$G$131,Adatközlő!$F$131))","v":0},""]
[{"$f":"IF(B87>0,COUNTIF($I$6:I87,1),\"\")","v":""},null,"eü. menedzser",null,null,1500,1800,{"$f":"B87*IF($K$28=1,IF(Ajánlat1!$J$139=2,Adatközlő!G87,Adatközlő!F87),IF(Ajánlat1!$J$139=2,Adatközlő!$G$131,Adatközlő!$F$131))","v":0},""]
[{"$f":"IF(B88>0,COUNTIF($I$6:I88,1),\"\")","v":""},null,"élelmezésvezető",null,null,1500,1800,{"$f":"B88*IF($K$28=1,IF(Ajánlat1!$J$139=2,Adatközlő!G88,Adatközlő!F88),IF(Ajánlat1!$J$139=2,Adatközlő!$G$131,Adatközlő!$F$131))","v":0},""]
[{"$f":"IF(B89>0,COUNTIF($I$6:I89,1),\"\")","v":""},null,"gondozó",null,null,1500,1800,{"$f":"B89*IF($K$28=1,IF(Ajánlat1!$J$139=2,Adatközlő!G89,Adatközlő!F89),IF(Ajánlat1!$J$139=2,Adatközlő!$G$131,Adatközlő!$F$131))","v":0},""]
[{"$f":"IF(B90>0,COUNTIF($I$6:I90,1),\"\")","v":""},null,"gyógymasszőr",null,null,1500,1800,{"$f":"B90*IF($K$28=1,IF(Ajánlat1!$J$139=2,Adatközlő!G90,Adatközlő!F90),IF(Ajánlat1!$J$139=2,Adatközlő!$G$131,Adatközlő!$F$131))","v":0},""]
[{"$f":"IF(B91>0,COUNTIF($I$6:I91,1),\"\")","v":""},null,"gyógytornász",null,null,1500,1800,{"$f":"B91*IF($K$28=1,IF(Ajánlat1!$J$139=2,Adatközlő!G91,Adatközlő!F91),IF(Ajánlat1!$J$139=2,Adatközlő!$G$131,Adatközlő!$F$131))","v":0},""]
[{"$f":"IF(B92>0,COUNTIF($I$6:I92,1),\"\")","v":""},null,"nővér",null,null,1500,1800,{"$f":"B92*IF($K$28=1,IF(Ajánlat1!$J$139=2,Adatközlő!G92,Adatközlő!F92),IF(Ajánlat1!$J$139=2,Adatközlő!$G$131,Adatközlő!$F$131))","v":0},""]
[{"$f":"IF(B93>0,COUNTIF($I$6:I93,1),\"\")","v":""},null,"optometrista",null,null,1500,1800,{"$f":"B93*IF($K$28=1,IF(Ajánlat1!$J$139=2,Adatközlő!G93,Adatközlő!F93),IF(Ajánlat1!$J$139=2,Adatközlő!$G$131,Adatközlő!$F$131))","v":0},""]
[{"$f":"IF(B94>0,COUNTIF($I$6:I94,1),\"\")","v":""},null,"szakaszisztens",null,null,1500,1800,{"$f":"B94*IF($K$28=1,IF(Ajánlat1!$J$139=2,Adatközlő!G94,Adatközlő!F94),IF(Ajánlat1!$J$139=2,Adatközlő!$G$131,Adatközlő!$F$131))","v":0},""]
[{"$f":"IF(B95>0,COUNTIF($I$6:I95,1),\"\")","v":""},null,"szakápoló",null,null,1500,1800,{"$f":"B95*IF($K$28=1,IF(Ajánlat1!$J$139=2,Adatközlő!G95,Adatközlő!F95),IF(Ajánlat1!$J$139=2,Adatközlő!$G$131,Adatközlő!$F$131))","v":0},""]
[{"$f":"IF(B96>0,COUNTIF($I$6:I96,1),\"\")","v":""},null,"szakgondozó",null,null,1500,1800,{"$f":"B96*IF($K$28=1,IF(Ajánlat1!$J$139=2,Adatközlő!G96,Adatközlő!F96),IF(Ajánlat1!$J$139=2,Adatközlő!$G$131,Adatközlő!$F$131))","v":0},""]
[{"$f":"IF(B97>0,COUNTIF($I$6:I97,1),\"\")","v":""},null,"védőnő",null,null,1500,1800,{"$f":"B97*IF($K$28=1,IF(Ajánlat1!$J$139=2,Adatközlő!G97,Adatközlő!F97),IF(Ajánlat1!$J$139=2,Adatközlő!$G$131,Adatközlő!$F$131))","v":0},""]
[null,"Gyógyászati segédeszköz forgalmazási, javítási, kölcsönzési tevékenyéséget folytatók:"]
[{"$f":"IF(B99>0,COUNTIF($I$6:I99,1),\"\")","v":""},null,"Gyógyászati segédeszköz forgalmazás, javítás, kölcsönzés",null,null,5500,7000,{"$f":"B99*IF(Ajánlat1!$J$139=2,Adatközlő!G99,Adatközlő!F99)","v":0},""]
[null,"Gyógyszertári tevékenységet folytatók:"]
[{"$f":"IF(B101>0,COUNTIF($I$6:I101,1),\"\")","v":""},null,"Gyógyszerész",null,null,19000,24000,{"$f":"B101*IF(Ajánlat1!$J$139=2,Adatközlő!G101,Adatközlő!F101)","v":0},""]
[{"$f":"IF(B102>0,COUNTIF($I$6:I102,1),\"\")","v":""},null,"Gyógyszerész-asszisztens",null,null,1500,1800,{"$f":"B102*IF(B101>0,IF(Ajánlat1!$J$139=2,Adatközlő!G102,Adatközlő!F102),IF(Ajánlat1!$J$139=2,Adatközlő!G131,Adatközlő!F131))","v":0},""]
[null,"Szociális gondozói tevékenységet folytatók:"]
[{"$f":"IF(B104>0,COUNTIF($I$6:I104,1),\"\")","v":""},null,"Szociális gondozó",null,null,5500,7000,{"$f":"B104*IF(Ajánlat1!$J$139=2,Adatközlő!G104,Adatközlő!F104)","v":0},""]
[null,"Orvos-természetgyógyász tevékenységet folytatók:"]
[{"$f":"IF(B106>0,COUNTIF($I$6:I106,1),\"\")","v":""},null,"biorezonancián alapuló eljárások",null,null,39000,46000,{"$f":"B106*IF(Ajánlat1!$J$139=2,Adatközlő!G106,Adatközlő!F106)","v":0},""]
[{"$f":"IF(B107>0,COUNTIF($I$6:I107,1),\"\")","v":""},null,"hagyományos kínai orvoslás",null,null,39000,46000,{"$f":"B107*IF(Ajánlat1!$J$139=2,Adatközlő!G107,Adatközlő!F107)","v":0},""]
[{"$f":"IF(B108>0,COUNTIF($I$6:I108,1),\"\")","v":""},null,"homeopátiás eljárások",null,null,39000,46000,{"$f":"B108*IF(Ajánlat1!$J$139=2,Adatközlő!G108,Adatközlő!F108)","v":0},""]
[{"$f":"IF(B109>0,COUNTIF($I$6:I109,1),\"\")","v":""},null,"indiai gyógyászati eljárások",null,null,39000,46000,{"$f":"B109*IF(Ajánlat1!$J$139=2,Adatközlő!G109,Adatközlő!F109)","v":0},""]
[{"$f":"IF(B110>0,COUNTIF($I$6:I110,1),\"\")","v":""},null,"manuálterápiás eljárások",null,null,39000,46000,{"$f":"B110*IF(Ajánlat1!$J$139=2,Adatközlő!G110,Adatközlő!F110)","v":0},""]
[{"$f":"IF(B111>0,COUNTIF($I$6:I111,1),\"\")","v":""},null,"méregtelenítő módok",null,null,39000,46000,{"$f":"B111*IF(Ajánlat1!$J$139=2,Adatközlő!G111,Adatközlő!F111)","v":0},""]
[{"$f":"IF(B112>0,COUNTIF($I$6:I112,1),\"\")","v":""},null,"neurálterápiás módszerek",null,null,39000,46000,{"$f":"B112*IF(Ajánlat1!$J$139=2,Adatközlő!G112,Adatközlő!F112)","v":0},""]
[{"$f":"IF(B113>0,COUNTIF($I$6:I113,1),\"\")","v":""},null,"tibeti gyógyászati eljárások",null,null,39000,46000,{"$f":"B113*IF(Ajánlat1!$J$139=2,Adatközlő!G113,Adatközlő!F113)","v":0},""]
[{"$f":"IF(B114>0,COUNTIF($I$6:I114,1),\"\")","v":""},null,"vér oxigenizálásán alapuló terápiák",null,null,39000,46000,{"$f":"B114*IF(Ajánlat1!$J$139=2,Adatközlő!G114,Adatközlő!F114)","v":0},""]
[null,"Természetgyógyász tevékenységet folytatók:"]
[{"$f":"IF(B116>0,COUNTIF($I$6:I116,1),\"\")","v":""},null,"természetgyógyászat - bioenergiát alkalmazó módszerek",null,null,19000,24000,{"$f":"B116*IF(Ajánlat1!$J$139=2,Adatközlő!G116,Adatközlő!F116)","v":0},""]
[{"$f":"IF(B117>0,COUNTIF($I$6:I117,1),\"\")","v":""},null,"természetgyógyászat - kineziológiai módszerek",null,null,19000,24000,{"$f":"B117*IF(Ajánlat1!$J$139=2,Adatközlő!G117,Adatközlő!F117)","v":0},""]
[{"$f":"IF(B118>0,COUNTIF($I$6:I118,1),\"\")","v":""},null,"természetgyógyászat - szemtréning eljárások",null,null,19000,24000,{"$f":"B118*IF(Ajánlat1!$J$139=2,Adatközlő!G118,Adatközlő!F118)","v":0},""]
[{"$f":"IF(B119>0,COUNTIF($I$6:I119,1),\"\")","v":""},null,"természetgyógyászat - alternatív fizioterápia",null,null,23500,29000,{"$f":"B119*IF(Ajánlat1!$J$139=2,Adatközlő!G119,Adatközlő!F119)","v":0},""]
[{"$f":"IF(B120>0,COUNTIF($I$6:I120,1),\"\")","v":""},null,"természetgyógyászat - életmód tanácsadás és terápia ",null,null,23500,29000,{"$f":"B120*IF(Ajánlat1!$J$139=2,Adatközlő!G120,Adatközlő!F120)","v":0},""]
[{"$f":"IF(B121>0,COUNTIF($I$6:I121,1),\"\")","v":""},null,"természetgyógyászat - fitoterápia",null,null,23500,29000,{"$f":"B121*IF(Ajánlat1!$J$139=2,Adatközlő!G121,Adatközlő!F121)","v":0},""]
[{"$f":"IF(B122>0,COUNTIF($I$6:I122,1),\"\")","v":""},null,"természetgyógyászat - fülakupunktúrás addiktológiai eljárások",null,null,23500,29000,{"$f":"B122*IF(Ajánlat1!$J$139=2,Adatközlő!G122,Adatközlő!F122)","v":0},""]
[{"$f":"IF(B123>0,COUNTIF($I$6:I123,1),\"\")","v":""},null,"természetgyógyászat - reflexzóna terápia",null,null,23500,29000,{"$f":"B123*IF(Ajánlat1!$J$139=2,Adatközlő!G123,Adatközlő!F123)","v":0},""]
[{"$f":"IF(B124>0,COUNTIF($I$6:I124,1),\"\")","v":""},null,"természetgyógyászat - akupresszúra",null,null,33500,40000,{"$f":"B124*IF(Ajánlat1!$J$139=2,Adatközlő!G124,Adatközlő!F124)","v":0},""]
[{"$f":"IF(B125>0,COUNTIF($I$6:I125,1),\"\")","v":""},null,"természetgyógyászat - alternatív mozgás– és masszázsterápiák",null,null,33500,40000,{"$f":"B125*IF(Ajánlat1!$J$139=2,Adatközlő!G125,Adatközlő!F125)","v":0},""]
[{"$f":"IF(B126>0,COUNTIF($I$6:I126,1),\"\")","v":""},null,"természetgyógyászat - gyógytornászok által végezhető manuálterápiás eljárások",null,null,33500,40000,{"$f":"B126*IF(Ajánlat1!$J$139=2,Adatközlő!G126,Adatközlő!F126)","v":0},""]
[null,"Állatorvosi tevékenységet folytatók:"]
[{"$f":"IF(B128>0,COUNTIF($I$6:I128,1),\"\")","v":""},null,"állatorvoslás (nem haszonállatok orvoslása műtéti tevékenység nélkül)",null,null,13500,16000,{"$f":"B128*IF(Ajánlat1!$J$139=2,Adatközlő!G128,Adatközlő!F128)","v":0},""]
[{"$f":"IF(B129>0,COUNTIF($I$6:I129,1),\"\")","v":""},null,"állatorvoslás (nem haszonállatok orvoslása, műtéti tevékenységgel)",null,null,33500,40000,{"$f":"B129*IF(Ajánlat1!$J$139=2,Adatközlő!G129,Adatközlő!F129)","v":0},""]
[{"$f":"IF(B130>0,COUNTIF($I$6:I130,1),\"\")","v":""},null,"állatorvos-egészségügyi szakszemélyzet (orvossal együtt kötött szerződés esetén)",null,null,1500,1800,{"$f":"B130*IF(K28=1,IF(Ajánlat1!$J$139=2,Adatközlő!G130,Adatközlő!F130),IF(Ajánlat1!$J$139=2,Adatközlő!$G$131,Adatközlő!$F$131))","v":0},""]
[null,{"$f":"SUM(B6:B130)","v":0},null,null,null,5500,7000]

{"sheet":"Ajánlat1","index":2,"n_rows":189,"n_cols":51,"rows_kept":189,"cut":false,"hidden":false,"merged":[[33,35,33,36],[34,35,34,36],[45,35,45,37],[35,35,35,36],[36,35,36,36],[37,35,37,36],[38,35,38,36],[39,35,39,36],[40,35,40,36],[41,35,41,36],[42,35,42,36],[43,35,43,36],[44,35,44,36],[128,36,128,48],[100,31,100,35],[90,31,90,35],[9,5,9,9],[9,36,9,49],[10,6,10,8],[16,22,16,32],[155,18,155,21],[140,18,140,21],[141,18,141,21],[142,18,142,21],[143,18,143,21],[144,18,144,21],[35,42,35,45],[36,42,36,45],[42,42,42,45],[43,42,43,45],[37,42,37,45],[38,42,38,45],[39,42,39,45],[40,42,40,45],[41,42,41,45],[10,40,10,49],[74,10,74,17],[156,18,156,21],[157,18,157,21],[158,18,158,21],[150,18,150,21],[151,18,151,21],[152,18,152,21],[153,18,153,21],[154,18,154,21],[145,18,145,21],[146,18,146,21],[147,18,147,21],[148,18,148,21],[149,18,149,21],[6,1,6,7],[14,11,14,49],[16,6,16,18],[52,9,52,20],[52,41,52,45],[50,3,50,6],[50,9,50,20],[50,41,50,45],[48,3,48,6],[48,9,48,20],[48,41,48,45],[9,16,9,29],[10,16,10,21],[22,23,22,37],[22,8,22,19],[44,42,44,45],[27,42,27,45],[28,42,28,45],[25,35,25,36],[26,35,26,36],[27,35,27,36],[28,35,28,36],[29,35,29,36],[30,35,30,36],[56,3,56,6],[56,9,56,20],[56,41,56,45],[48,24,48,37],[50,24,50,37],[54,3,54,6],[54,9,54,20],[7,1,7,34],[70,10,70,14],[68,10,68,14],[54,41,54,45],[11,6,11,15],[11,41,11,49],[19,23,19,37],[25,42,25,45],[26,42,26,45],[24,42,24,45],[29,42,29,45],[34,42,34,45],[16,36,16,49],[22,41,22,45],[19,41,19,45],[31,35,31,36],[32,35,32,36],[179,3,179,7],[179,8,179,10],[179,11,179,13],[19,2,19,5],[19,8,19,19],[128,19,128,31],[22,2,22,5],[52,3,52,6],[92,31,92,35],[96,31,96,35],[127,4,127,10],[98,31,98,35],[127,12,127,15],[94,31,94,35],[139,18,139,21],[162,18,162,21],[66,10,66,42],[52,24,52,37],[54,24,54,37],[56,24,56,37],[30,42,30,45],[31,42,31,45],[32,42,32,45],[33,42,33,45]]}
[]
[]
[]
[]
[null,null,"Kötvényszám:"]
[null,null,null,null,null,null,null,null,null,null,null,null,null,null,null,null,null,null,null,null,null,null,null,null,null,null,null,null,null,null,null,null,null,null,null,null,null,null,null,null,null,null,null,null,null,null,null,null,null,null,"UNION - Járóbeteg-szakellátás egészségügyi felelősségbiztosítás"]
[null,null,null,null,null,null,null,null,null,null,null,null,null,null,null,null,null,null,null,null,null,null,null,null,null,null,null,null,null,null,null,null,null,null,null,null,null,null,null,null,null,null,null,null,null,null,null,null,null,null,"Biztosítási Ajánlat"]
[null,"FIGYELEMFELHÍVÁS!\n1. CSAK A BIZTOSÍTOTT SAJÁT NEVÉBEN NYÚJTOTT MAGÁN EGÉSZSÉGÜGYI SZOLGÁLTATÁSA BIZTOSÍTHATÓ, ALKALMAZOTTI, VAGY (AL)VÁLLALKOZÓI JOGVISZONYÁRA A FEDEZET NEM TERJED KI!\n2. FEKVŐBETEG ELLÁTÁSI TEVÉKENYSÉG NEM BIZTOSÍTHATÓ!\n3. HASZONÁLLAT ORVOSLÁSA NEM BIZTOSÍTHATÓ!"]
[]
[null,null,"Módozat",null,null,7810,null,null,null,null,null,"Üzletkötő neve:",null,null,null,null,null,null,null,null,null,null,null,null,null,null,null,null,null,null,null,"Üzletkötő kódja:"]
[null,null,"Átdolgozás:",null,null,null,"nem",null,null,null,null,null,null,null,null,"Előzmény kötv.száma:",null,null,null,null,null,null,null,"Adóigazgatási szám: 1049 1984-2-44",null,null,null,null,null,null,null,null,null,null,null,null,null,null,null,"Ajánlat azonosító:"]
[null,null,"Készítette:",null,null,null,null,null,null,null,null,null,null,null,null,null,null,{"$f":"CONCATENATE(\"    Tel: \",IFERROR(VLOOKUP(G12,D183:K196,7,FALSE),\"\"),\"     E-mail: \",IFERROR(VLOOKUP(G12,D183:K196,4,FALSE),\"\"))","v":"    Tel:      E-mail: "},null,null,null,null,null,null,null,null,null,null,null,null,null,null,null,null,null,null,null,null,"Hiv.szám:"]
[]
[]
[null,null,"Szerződő / Biztosított neve:"]
[]
[null,null,"Adószáma:",null,null,null,null,null,null,null,null,null,null,null,null,null,null,null,null,null,null,"Tel:",null,null,null,null,null,null,null,null,null,null,null,null,null,"E-mail:"]
[]
[null,null,"Székhelye:"]
[null,null,null,null,null,null,"ir.sz.",null,null,null,null,null,null,null,null,null,null,null,null,null,"helység",null,null,null,null,null,null,null,null,null,null,null,null,null,null,null,null,null,"közterület",null,null,null,null,null,null,null,"hsz.em.ajtó"]
[]
[null,null,"Levelezési Címe:"]
[null,null,null,null,null,null,"ir.sz.",null,null,null,null,null,null,null,null,null,null,null,null,null,"helység",null,null,null,null,null,null,null,null,null,null,null,null,null,null,null,null,null,"közterület",null,null,null,null,null,null,null,"hsz.em.ajtó"]
[]
[null,null,"Biztosított szakágak:",null,null,null,null,null,null,null,"",null,null,null,null,null,null,null,null,null,null,null,null,null,null,null,null,null,null,null,null,null,null,null,null,"Létszám",null,null,null,null,null,null,"Díj"]
[null,null,null,null,{"$f":"VLOOKUP(1,Adatközlő!$A$6:$D$130,3,FALSE)","v":{"$error":"#N/A"}},null,null,null,null,null,null,null,null,null,null,null,null,null,null,null,null,null,null,null,null,null,null,null,null,null,null,null,null,null,null,{"$f":"IFERROR(IF(VLOOKUP(1,Adatközlő!$A$6:$D$130,2,FALSE)=0,\"\",VLOOKUP(1,Adatközlő!$A$6:$D$130,2,FALSE)),0)","v":0},null,null,null,null,null,null,{"$f":"IFERROR(IF(VLOOKUP(1,Adatközlő!$A$6:$H$130,8,FALSE)=0,\"\",IF(AND(summavalodidij<10000,J139=1),10000,IF(AND(J139=2,summavalodidij<13000),13000,VLOOKUP(1,Adatközlő!$A$6:$H$130,8,FALSE)))),0)","v":0}]
[null,null,null,null,{"$f":"VLOOKUP(2,Adatközlő!$A$6:$D$130,3,FALSE)","v":{"$error":"#N/A"}},null,null,null,null,null,null,null,null,null,null,null,null,null,null,null,null,null,null,null,null,null,null,null,null,null,null,null,null,null,null,{"$f":"IFERROR(IF(VLOOKUP(2,Adatközlő!$A$6:$D$130,2,FALSE)=0,\"\",VLOOKUP(2,Adatközlő!$A$6:$D$130,2,FALSE)),0)","v":0},null,null,null,null,null,null,{"$f":"IFERROR(IF(VLOOKUP(2,Adatközlő!$A$6:$H$130,8,FALSE)=0,\"\",VLOOKUP(2,Adatközlő!$A$6:$H$130,8,FALSE)),0)","v":0}]
[null,null,null,null,{"$f":"VLOOKUP(3,Adatközlő!$A$6:$D$130,3,FALSE)","v":{"$error":"#N/A"}},null,null,null,null,null,null,null,null,null,null,null,null,null,null,null,null,null,null,null,null,null,null,null,null,null,null,null,null,null,null,{"$f":"IFERROR(IF(VLOOKUP(3,Adatközlő!$A$6:$D$130,2,FALSE)=0,\"\",VLOOKUP(3,Adatközlő!$A$6:$D$130,2,FALSE)),0)","v":0},null,null,null,null,null,null,{"$f":"IFERROR(IF(VLOOKUP(3,Adatközlő!$A$6:$H$130,8,FALSE)=0,\"\",VLOOKUP(3,Adatközlő!$A$6:$H$130,8,FALSE)),0)","v":0}]
[null,null,null,null,{"$f":"VLOOKUP(4,Adatközlő!$A$6:$D$130,3,FALSE)","v":{"$error":"#N/A"}},null,null,null,null,null,null,null,null,null,null,null,null,null,null,null,null,null,null,null,null,null,null,null,null,null,null,null,null,null,null,{"$f":"IFERROR(IF(VLOOKUP(4,Adatközlő!$A$6:$D$130,2,FALSE)=0,\"\",VLOOKUP(4,Adatközlő!$A$6:$D$130,2,FALSE)),0)","v":0},null,null,null,null,null,null,{"$f":"IFERROR(IF(VLOOKUP(4,Adatközlő!$A$6:$H$130,8,FALSE)=0,\"\",VLOOKUP(4,Adatközlő!$A$6:$H$130,8,FALSE)),0)","v":0}]
[null,null,null,null,{"$f":"VLOOKUP(5,Adatközlő!$A$6:$D$130,3,FALSE)","v":{"$error":"#N/A"}},null,null,null,null,null,null,null,null,null,null,null,null,null,null,null,null,null,null,null,null,null,null,null,null,null,null,null,null,null,null,{"$f":"IFERROR(IF(VLOOKUP(5,Adatközlő!$A$6:$D$130,2,FALSE)=0,\"\",VLOOKUP(5,Adatközlő!$A$6:$D$130,2,FALSE)),0)","v":0},null,null,null,null,null,null,{"$f":"IFERROR(IF(VLOOKUP(5,Adatközlő!$A$6:$H$130,8,FALSE)=0,\"\",VLOOKUP(5,Adatközlő!$A$6:$H$130,8,FALSE)),0)","v":0}]
[null,null,null,null,{"$f":"VLOOKUP(6,Adatközlő!$A$6:$D$130,3,FALSE)","v":{"$error":"#N/A"}},null,null,null,null,null,null,null,null,null,null,null,null,null,null,null,null,null,null,null,null,null,null,null,null,null,null,null,null,null,null,{"$f":"IFERROR(IF(VLOOKUP(6,Adatközlő!$A$6:$D$130,2,FALSE)=0,\"\",VLOOKUP(6,Adatközlő!$A$6:$D$130,2,FALSE)),0)","v":0},null,null,null,null,null,null,{"$f":"IFERROR(IF(VLOOKUP(6,Adatközlő!$A$6:$H$130,8,FALSE)=0,\"\",VLOOKUP(6,Adatközlő!$A$6:$H$130,8,FALSE)),0)","v":0}]
[null,null,null,null,{"$f":"VLOOKUP(7,Adatközlő!$A$6:$D$130,3,FALSE)","v":{"$error":"#N/A"}},null,null,null,null,null,null,null,null,null,null,null,null,null,null,null,null,null,null,null,null,null,null,null,null,null,null,null,null,null,null,{"$f":"IFERROR(IF(VLOOKUP(7,Adatközlő!$A$6:$D$130,2,FALSE)=0,\"\",VLOOKUP(7,Adatközlő!$A$6:$D$130,2,FALSE)),0)","v":0},null,null,null,null,null,null,{"$f":"IFERROR(IF(VLOOKUP(7,Adatközlő!$A$6:$H$130,8,FALSE)=0,\"\",VLOOKUP(7,Adatközlő!$A$6:$H$130,8,FALSE)),0)","v":0}]
[null,null,null,null,{"$f":"VLOOKUP(8,Adatközlő!$A$6:$D$130,3,FALSE)","v":{"$error":"#N/A"}},null,null,null,null,null,null,null,null,null,null,null,null,null,null,null,null,null,null,null,null,null,null,null,null,null,null,null,null,null,null,{"$f":"IFERROR(IF(VLOOKUP(8,Adatközlő!$A$6:$D$130,2,FALSE)=0,\"\",VLOOKUP(8,Adatközlő!$A$6:$D$130,2,FALSE)),0)","v":0},null,null,null,null,null,null,{"$f":"IFERROR(IF(VLOOKUP(8,Adatközlő!$A$6:$H$130,8,FALSE)=0,\"\",VLOOKUP(8,Adatközlő!$A$6:$H$130,8,FALSE)),0)","v":0}]
[null,null,null,null,{"$f":"VLOOKUP(9,Adatközlő!$A$6:$D$130,3,FALSE)","v":{"$error":"#N/A"}},null,null,null,null,null,null,null,null,null,null,null,null,null,null,null,null,null,null,null,null,null,null,null,null,null,null,null,null,null,null,{"$f":"IFERROR(IF(VLOOKUP(9,Adatközlő!$A$6:$D$130,2,FALSE)=0,\"\",VLOOKUP(9,Adatközlő!$A$6:$D$130,2,FALSE)),0)","v":0},null,null,null,null,null,null,{"$f":"IFERROR(IF(VLOOKUP(9,Adatközlő!$A$6:$H$130,8,FALSE)=0,\"\",VLOOKUP(9,Adatközlő!$A$6:$H$130,8,FALSE)),0)","v":0}]
[null,null,null,null,{"$f":"VLOOKUP(10,Adatközlő!$A$6:$D$130,3,FALSE)","v":{"$error":"#N/A"}},null,null,null,null,null,null,null,null,null,null,null,null,null,null,null,null,null,null,null,null,null,null,null,null,null,null,null,null,null,null,{"$f":"IFERROR(IF(VLOOKUP(10,Adatközlő!$A$6:$D$130,2,FALSE)=0,\"\",VLOOKUP(10,Adatközlő!$A$6:$D$130,2,FALSE)),0)","v":0},null,null,null,null,null,null,{"$f":"IFERROR(IF(VLOOKUP(10,Adatközlő!$A$6:$H$130,8,FALSE)=0,\"\",VLOOKUP(10,Adatközlő!$A$6:$H$130,8,FALSE)),0)","v":0}]
[null,null,null,null,{"$f":"VLOOKUP(11,Adatközlő!$A$6:$D$130,3,FALSE)","v":{"$error":"#N/A"}},null,null,null,null,null,null,null,null,null,null,null,null,null,null,null,null,null,null,null,null,null,null,null,null,null,null,null,null,null,null,{"$f":"IFERROR(IF(VLOOKUP(11,Adatközlő!$A$6:$D$130,2,FALSE)=0,\"\",VLOOKUP(11,Adatközlő!$A$6:$D$130,2,FALSE)),0)","v":0},null,null,null,null,null,null,{"$f":"IFERROR(IF(VLOOKUP(11,Adatközlő!$A$6:$H$130,8,FALSE)=0,\"\",VLOOKUP(11,Adatközlő!$A$6:$H$130,8,FALSE)),0)","v":0}]
[null,null,null,null,{"$f":"VLOOKUP(12,Adatközlő!$A$6:$D$130,3,FALSE)","v":{"$error":"#N/A"}},null,null,null,null,null,null,null,null,null,null,null,null,null,null,null,null,null,null,null,null,null,null,null,null,null,null,null,null,null,null,{"$f":"IFERROR(IF(VLOOKUP(12,Adatközlő!$A$6:$D$130,2,FALSE)=0,\"\",VLOOKUP(12,Adatközlő!$A$6:$D$130,2,FALSE)),0)","v":0},null,null,null,null,null,null,{"$f":"IFERROR(IF(VLOOKUP(12,Adatközlő!$A$6:$H$130,8,FALSE)=0,\"\",VLOOKUP(12,Adatközlő!$A$6:$H$130,8,FALSE)),0)","v":0}]
[null,null,null,null,{"$f":"VLOOKUP(13,Adatközlő!$A$6:$D$130,3,FALSE)","v":{"$error":"#N/A"}},null,null,null,null,null,null,null,null,null,null,null,null,null,null,null,null,null,null,null,null,null,null,null,null,null,null,null,null,null,null,{"$f":"IFERROR(IF(VLOOKUP(13,Adatközlő!$A$6:$D$130,2,FALSE)=0,\"\",VLOOKUP(13,Adatközlő!$A$6:$D$130,2,FALSE)),0)","v":0},null,null,null,null,null,null,{"$f":"IFERROR(IF(VLOOKUP(13,Adatközlő!$A$6:$H$130,8,FALSE)=0,\"\",VLOOKUP(13,Adatközlő!$A$6:$H$130,8,FALSE)),0)","v":0}]
[null,null,null,null,{"$f":"VLOOKUP(14,Adatközlő!$A$6:$D$130,3,FALSE)","v":{"$error":"#N/A"}},null,null,null,null,null,null,null,null,null,null,null,null,null,null,null,null,null,null,null,null,null,null,null,null,null,null,null,null,null,null,{"$f":"IFERROR(IF(VLOOKUP(14,Adatközlő!$A$6:$D$130,2,FALSE)=0,\"\",VLOOKUP(14,Adatközlő!$A$6:$D$130,2,FALSE)),0)","v":0},null,null,null,null,null,null,{"$f":"IFERROR(IF(VLOOKUP(14,Adatközlő!$A$6:$H$130,8,FALSE)=0,\"\",VLOOKUP(14,Adatközlő!$A$6:$H$130,8,FALSE)),0)","v":0}]
[null,null,null,null,{"$f":"VLOOKUP(15,Adatközlő!$A$6:$D$130,3,FALSE)","v":{"$error":"#N/A"}},null,null,null,null,null,null,null,null,null,null,null,null,null,null,null,null,null,null,null,null,null,null,null,null,null,null,null,null,null,null,{"$f":"IFERROR(IF(VLOOKUP(15,Adatközlő!$A$6:$D$130,2,FALSE)=0,\"\",VLOOKUP(15,Adatközlő!$A$6:$D$130,2,FALSE)),0)","v":0},null,null,null,null,null,null,{"$f":"IFERROR(IF(VLOOKUP(15,Adatközlő!$A$6:$H$130,8,FALSE)=0,\"\",VLOOKUP(15,Adatközlő!$A$6:$H$130,8,FALSE)),0)","v":0}]
[null,null,null,null,{"$f":"VLOOKUP(16,Adatközlő!$A$6:$D$130,3,FALSE)","v":{"$error":"#N/A"}},null,null,null,null,null,null,null,null,null,null,null,null,null,null,null,null,null,null,null,null,null,null,null,null,null,null,null,null,null,null,{"$f":"IFERROR(IF(VLOOKUP(16,Adatközlő!$A$6:$D$130,2,FALSE)=0,\"\",VLOOKUP(16,Adatközlő!$A$6:$D$130,2,FALSE)),0)","v":0},null,null,null,null,null,null,{"$f":"IFERROR(IF(VLOOKUP(16,Adatközlő!$A$6:$H$130,8,FALSE)=0,\"\",VLOOKUP(16,Adatközlő!$A$6:$H$130,8,FALSE)),0)","v":0}]
[null,null,null,null,{"$f":"VLOOKUP(17,Adatközlő!$A$6:$D$130,3,FALSE)","v":{"$error":"#N/A"}},null,null,null,null,null,null,null,null,null,null,null,null,null,null,null,null,null,null,null,null,null,null,null,null,null,null,null,null,null,null,{"$f":"IFERROR(IF(VLOOKUP(17,Adatközlő!$A$6:$D$130,2,FALSE)=0,\"\",VLOOKUP(17,Adatközlő!$A$6:$D$130,2,FALSE)),0)","v":0},null,null,null,null,null,null,{"$f":"IFERROR(IF(VLOOKUP(17,Adatközlő!$A$6:$H$130,8,FALSE)=0,\"\",VLOOKUP(17,Adatközlő!$A$6:$H$130,8,FALSE)),0)","v":0}]
[null,null,null,null,{"$f":"VLOOKUP(18,Adatközlő!$A$6:$D$130,3,FALSE)","v":{"$error":"#N/A"}},null,null,null,null,null,null,null,null,null,null,null,null,null,null,null,null,null,null,null,null,null,null,null,null,null,null,null,null,null,null,{"$f":"IFERROR(IF(VLOOKUP(18,Adatközlő!$A$6:$D$130,2,FALSE)=0,\"\",VLOOKUP(18,Adatközlő!$A$6:$D$130,2,FALSE)),0)","v":0},null,null,null,null,null,null,{"$f":"IFERROR(IF(VLOOKUP(18,Adatközlő!$A$6:$H$130,8,FALSE)=0,\"\",VLOOKUP(18,Adatközlő!$A$6:$H$130,8,FALSE)),0)","v":0}]
[null,null,null,null,{"$f":"VLOOKUP(19,Adatközlő!$A$6:$D$130,3,FALSE)","v":{"$error":"#N/A"}},null,null,null,null,null,null,null,null,null,null,null,null,null,null,null,null,null,null,null,null,null,null,null,null,null,null,null,null,null,null,{"$f":"IFERROR(IF(VLOOKUP(19,Adatközlő!$A$6:$D$130,2,FALSE)=0,\"\",VLOOKUP(19,Adatközlő!$A$6:$D$130,2,FALSE)),0)","v":0},null,null,null,null,null,null,{"$f":"IFERROR(IF(VLOOKUP(19,Adatközlő!$A$6:$H$130,8,FALSE)=0,\"\",VLOOKUP(19,Adatközlő!$A$6:$H$130,8,FALSE)),0)","v":0}]
[null,null,null,null,{"$f":"VLOOKUP(20,Adatközlő!$A$6:$D$130,3,FALSE)","v":{"$error":"#N/A"}},null,null,null,null,null,null,null,null,null,null,null,null,null,null,null,null,null,null,null,null,null,null,null,null,null,null,null,null,null,null,{"$f":"IFERROR(IF(VLOOKUP(20,Adatközlő!$A$6:$D$130,2,FALSE)=0,\"\",VLOOKUP(20,Adatközlő!$A$6:$D$130,2,FALSE)),0)","v":0},null,null,null,null,null,null,{"$f":"IFERROR(IF(VLOOKUP(20,Adatközlő!$A$6:$H$130,8,FALSE)=0,\"\",VLOOKUP(20,Adatközlő!$A$6:$H$130,8,FALSE)),0)","v":0}]
[null,null,null,null,null,null,null,null,null,null,null,null,null,null,null,null,null,null,null,null,null,null,null,null,null,null,null,null,null,null,null,null,"Összesen:",null,null,{"$f":"SUM(AJ26:AK45)","v":0}]
[null,null,"Kockázatviselés helye (rendelő címe):"]
[]
[null,null,"1.)",null,null,null,null,"ir.sz.",null,null,null,null,null,null,null,null,null,null,null,null,null,"helység",null,null,null,null,null,null,null,null,null,null,null,null,null,null,null,null,"közterület",null,null,null,null,null,null,null,"hsz.em.ajtó"]
[]
[null,null,"2.)",null,null,null,null,"ir.sz.",null,null,null,null,null,null,null,null,null,null,null,null,null,"helység",null,null,null,null,null,null,null,null,null,null,null,null,null,null,null,null,"közterület",null,null,null,null,null,null,null,"hsz.em.ajtó"]
[]
[null,null,"3.)",null,null,null,null,"ir.sz.",null,null,null,null,null,null,null,null,null,null,null,null,null,"helység",null,null,null,null,null,null,null,null,null,null,null,null,null,null,null,null,"közterület",null,null,null,null,null,null,null,"hsz.em.ajtó"]
[]
[null,null,"4.)",null,null,null,null,"ir.sz.",null,null,null,null,null,null,null,null,null,null,null,null,null,"helység",null,null,null,null,null,null,null,null,null,null,null,null,null,null,null,null,"közterület",null,null,null,null,null,null,null,"hsz.em.ajtó"]
[]
[null,null,"5.)",null,null,null,null,"ir.sz.",null,null,null,null,null,null,null,null,null,null,null,null,null,"helység",null,null,null,null,null,null,null,null,null,null,null,null,null,null,null,null,"közterület",null,null,null,null,null,null,null,"hsz.em.ajtó"]
[]
[]
[]
[]
[]
[null,null,"Területi hatály:",null,null,null,null,null,null,null,"Magyarország"]
[]
[null,null,"Biztosítás tartama:",null,null,null,null,null,null,null,"határozatlan, melyen belül a biztosítási időszak 1 év"]
[]
[null,null,"Biztosítási évforduló:",null,null,null,null,null,null,null,"minden évben a kockázatviselés kezdetének napja, ha ez a nap február 29-e, akkor minden év március 01. napja"]
[]
[null,null,"Kockázatviselés kezdete:"]
[]
[null,null,"Díjfizetés gyakorisága:"]
[]
[null,null,"Díjfizetés módja:",null,null,null,null,null,null,null,"a biztosító által kiállított számviteli bizonylat alapján, átutalással"]
[]
[null,null,"Limit:"]
[]
[null,null,"Önrész:",null,null,null,null,null,null,null,"10%, de min. 50 000 Ft / kár"]
[]
[]
[]
[]
[]
[]
[]
[]
[]
[]
[]
[null,null,null,null,null,null,null,null,null,null,null,null,null,null,"Biztosítási díjösszesítő "]
[]
[null,null,null,null,null,null,null,null,null,null,null,null,null,null,null,null,"Kis- és középvállalkozások felelősségbiztosítása",null,null,null,null,null,null,null,null,null,null,null,null,null,null,{"$f":"IFERROR(C170,0)","v":0}]
[]
[null,null,null,null,null,null,null,null,null,null,null,null,null,null,null,null,"Éves díj összesen:",null,null,null,null,null,null,null,null,null,null,null,null,null,null,{"$f":"IF(OR(K75=\"\"),0,SUM(AQ26:AT45))","v":0}]
[]
[null,null,null,null,null,null,null,null,null,null,null,null,null,null,null,null,"Volumenkedvezmény:",null,null,null,null,null,null,null,null,null,null,null,null,null,null,{"$f":"1-IFERROR(VLOOKUP(Adatközlő!B131,Adatközlő!L5:M24,2,FALSE),0)","v":1}]
[]
[null,null,null,null,null,null,null,null,null,null,null,null,null,null,null,null,"Díjfizetési gyakoriság miatti engedmény:",null,null,null,null,null,null,null,null,null,null,null,null,null,null,0]
[]
[null,null,null,null,null,null,null,null,null,null,null,null,null,null,null,null,"Engedménnyel csökkentett éves díj:",null,null,null,null,null,null,null,null,null,null,null,null,null,null,{"$f":"IF(AF93=0,0,IF((AF93*(1-AF97)*(1-AF95))>10000,(AF93*(1-AF97)*(1-AF95)),10000))","v":0}]
[]
[null,null,null,null,null,null,null,null,null,null,null,null,null,null,null,null,"Gyakoriságnak megfelelő díj:",null,null,null,null,null,null,null,null,null,null,null,null,null,null,{"$f":"IF(K71=\"féléves\",AF99*0.5,IF(K71=\"negyedéves\",AF99*0.25,IF(K71=\"\",0,AF99)))","v":0}]
[]
[]
[null,null,null,null,null,null,null,null,null,null,null,null,null,"A biztosított három alábbi mutatója közül legalább kettő meghaladja-e a következő értékeket:"]
[null,null,null,null,null,null,null,null,null,null,null,null,null,"               Mérleg főösszege az 1,5 mrd. Ft-ot"]
[null,null,null,null,null,null,null,null,null,null,null,null,null,"               Nettó üzleti forgalma a 3 mrd. Ft-ot"]
[null,null,null,null,null,null,null,null,null,null,null,null,null,"               Átlagos alkalmazotti létszám az 1.000 főt"]
[]
[null,null,null,null,null,null,null,null,null,null,null,null,null,"Ezúton nyilatkozom, hogy Társaságunk :"]
[]
[]
[]
[]
[null,null,null,null,null,null,null,null,null,null,null,null,null,"minősül."]
[]
[]
[]
[]
[]
[]
[]
[]
[]
[]
[]
[]
[]
[null,null,"Kelt:",null,{"$f":"szerz.lakcimhelyseg","v":0},null,null,null,null,null,null,",",{"$f":"TODAY()","v":"2021-07-01"}]
[null,null,null,null,null,null,null,null,null,null,null,null,null,null,null,null,null,null,null,"Biztosításközvetítő aláírása",null,null,null,null,null,null,null,null,null,null,null,null,null,null,null,null,"Szerződő cégszerű aláírása"]
[]
[]
[null,null,"igen"]
[null,null,"nem"]
[null,null,null,null,null,null,null,null,null,null,null,null,null,null,null,null,null,null,null,null,null,null,null,null,null,null,null,null,null,null,null,null,null,null,null,null,null,null,null,"1 cím"]
[null,null,"éves",null,null,"éves",null,null,null,null,"",null,null,null,null,null,null,null,null,null,null,null,null,null,null,null,null,null,null,null,null,null,null,null,null,null,null,null,null,"2 cím",null,null,"1 cím",null,1]
[null,null,"féléves",null,null,null,null,null,null,null,null,null,null,null,null,null,null,null,null,null,null,null,null,null,null,null,null,null,null,null,null,null,null,null,null,null,null,null,null,"3 cím"]
[null,null,"negyedéves",null,null,null,null,null,null,null,null,null,null,null,null,null,null,null,null,null,null,null,null,null,null,null,null,null,null,null,null,null,null,null,null,null,null,null,null,"4 cím"]
[null,null,null,null,null,null,null,null,null,null,null,null,null,null,null,null,null,null,null,null,null,"Valódi díj",null,null,null,null,null,null,null,null,null,null,null,null,null,null,null,null,null,"5 cím"]
[null,null,"5 M Ft / kár, 15 M Ft / év",null,null,null,null,null,null,{"$f":"IF(K75=C139,1,IF(K75=C140,2,0))","v":0}]
[null,null,"10 M Ft / kár, 20 M Ft / év",null,null,null,null,null,null,null,null,null,null,null,null,1,null,null,{"$f":"IFERROR(IF(VLOOKUP(P140,Adatközlő!$A$6:$H$130,8,FALSE)=0,\"\",VLOOKUP(P140,Adatközlő!$A$6:$H$130,8,FALSE)),0)","v":0}]
[null,null,null,null,null,null,null,null,null,null,null,null,null,null,null,2,null,null,{"$f":"IFERROR(IF(VLOOKUP(P141,Adatközlő!$A$6:$H$130,8,FALSE)=0,\"\",VLOOKUP(P141,Adatközlő!$A$6:$H$130,8,FALSE)),0)","v":0}]
[null,null,null,null,null,null,null,null,null,null,null,null,null,null,null,3,null,null,{"$f":"IFERROR(IF(VLOOKUP(P142,Adatközlő!$A$6:$H$130,8,FALSE)=0,\"\",VLOOKUP(P142,Adatközlő!$A$6:$H$130,8,FALSE)),0)","v":0}]
[null,null,null,null,null,null,null,null,null,null,null,null,null,null,null,4,null,null,{"$f":"IFERROR(IF(VLOOKUP(P143,Adatközlő!$A$6:$H$130,8,FALSE)=0,\"\",VLOOKUP(P143,Adatközlő!$A$6:$H$130,8,FALSE)),0)","v":0}]
[null,null,null,null,null,null,null,null,null,null,null,null,null,null,null,5,null,null,{"$f":"IFERROR(IF(VLOOKUP(P144,Adatközlő!$A$6:$H$130,8,FALSE)=0,\"\",VLOOKUP(P144,Adatközlő!$A$6:$H$130,8,FALSE)),0)","v":0}]
[null,null,null,null,null,null,null,null,null,null,null,null,null,null,null,6,null,null,{"$f":"IFERROR(IF(VLOOKUP(P145,Adatközlő!$A$6:$H$130,8,FALSE)=0,\"\",VLOOKUP(P145,Adatközlő!$A$6:$H$130,8,FALSE)),0)","v":0}]
[null,null,null,null,null,null,null,null,null,null,null,null,null,null,null,7,null,null,{"$f":"IFERROR(IF(VLOOKUP(P146,Adatközlő!$A$6:$H$130,8,FALSE)=0,\"\",VLOOKUP(P146,Adatközlő!$A$6:$H$130,8,FALSE)),0)","v":0}]
[null,null,null,null,null,null,null,null,null,null,null,null,null,null,null,8,null,null,{"$f":"IFERROR(IF(VLOOKUP(P147,Adatközlő!$A$6:$H$130,8,FALSE)=0,\"\",VLOOKUP(P147,Adatközlő!$A$6:$H$130,8,FALSE)),0)","v":0},null,null,null,null,null,null,null,null,null,null,null,null,null,null,null,null,null,null,null,null,null,"Kötvény?"]
[null,null,null,null,null,null,null,null,null,null,null,null,null,null,null,9,null,null,{"$f":"IFERROR(IF(VLOOKUP(P148,Adatközlő!$A$6:$H$130,8,FALSE)=0,\"\",VLOOKUP(P148,Adatközlő!$A$6:$H$130,8,FALSE)),0)","v":0},null,null,null,null,null,null,null,null,null,null,null,null,null,null,null,null,null,null,null,null,null,false]
[null,null,null,null,null,null,null,null,null,null,null,null,null,null,null,10,null,null,{"$f":"IFERROR(IF(VLOOKUP(P149,Adatközlő!$A$6:$H$130,8,FALSE)=0,\"\",VLOOKUP(P149,Adatközlő!$A$6:$H$130,8,FALSE)),0)","v":0}]
[null,null,null,null,null,null,null,null,null,null,null,null,null,null,null,11,null,null,{"$f":"IFERROR(IF(VLOOKUP(P150,Adatközlő!$A$6:$H$130,8,FALSE)=0,\"\",VLOOKUP(P150,Adatközlő!$A$6:$H$130,8,FALSE)),0)","v":0}]
[null,null,null,null,null,null,null,null,null,null,null,null,null,null,null,12,null,null,{"$f":"IFERROR(IF(VLOOKUP(P151,Adatközlő!$A$6:$H$130,8,FALSE)=0,\"\",VLOOKUP(P151,Adatközlő!$A$6:$H$130,8,FALSE)),0)","v":0}]
[null,null,null,null,null,null,null,null,null,null,null,null,null,null,null,13,null,null,{"$f":"IFERROR(IF(VLOOKUP(P152,Adatközlő!$A$6:$H$130,8,FALSE)=0,\"\",VLOOKUP(P152,Adatközlő!$A$6:$H$130,8,FALSE)),0)","v":0}]
[null,null,null,null,null,null,null,null,null,null,null,null,null,null,null,14,null,null,{"$f":"IFERROR(IF(VLOOKUP(P153,Adatközlő!$A$6:$H$130,8,FALSE)=0,\"\",VLOOKUP(P153,Adatközlő!$A$6:$H$130,8,FALSE)),0)","v":0}]
[null,null,null,null,null,null,null,null,null,null,null,null,null,null,null,15,null,null,{"$f":"IFERROR(IF(VLOOKUP(P154,Adatközlő!$A$6:$H$130,8,FALSE)=0,\"\",VLOOKUP(P154,Adatközlő!$A$6:$H$130,8,FALSE)),0)","v":0}]
[null,null,null,null,null,null,null,null,null,null,null,null,null,null,null,16,null,null,{"$f":"IFERROR(IF(VLOOKUP(P155,Adatközlő!$A$6:$H$130,8,FALSE)=0,\"\",VLOOKUP(P155,Adatközlő!$A$6:$H$130,8,FALSE)),0)","v":0}]
[null,null,null,null,null,null,null,null,null,null,null,null,null,null,null,17,null,null,{"$f":"IFERROR(IF(VLOOKUP(P156,Adatközlő!$A$6:$H$130,8,FALSE)=0,\"\",VLOOKUP(P156,Adatközlő!$A$6:$H$130,8,FALSE)),0)","v":0}]
[null,null,null,null,null,null,null,null,null,null,null,null,null,null,null,18,null,null,{"$f":"IFERROR(IF(VLOOKUP(P157,Adatközlő!$A$6:$H$130,8,FALSE)=0,\"\",VLOOKUP(P157,Adatközlő!$A$6:$H$130,8,FALSE)),0)","v":0}]
[null,null,null,null,null,null,null,null,null,null,null,null,null,null,null,19,null,null,{"$f":"IFERROR(IF(VLOOKUP(P158,Adatközlő!$A$6:$H$130,8,FALSE)=0,\"\",VLOOKUP(P158,Adatközlő!$A$6:$H$130,8,FALSE)),0)","v":0}]
[null,null,null,null,null,null,null,null,null,null,null,null,null,null,null,20,null,null,{"$f":"IFERROR(IF(VLOOKUP(P159,Adatközlő!$A$6:$H$130,8,FALSE)=0,\"\",VLOOKUP(P159,Adatközlő!$A$6:$H$130,8,FALSE)),0)","v":0}]
[]
[null,null,null,null,null,null,null,null,null,null,null,null,null,null,null,null,null,null,null,null,null,"Summa valódi díj"]
[]
[null,null,null,null,null,null,null,null,null,null,null,null,null,null,null,null,null,null,{"$f":"SUM(S140:V159)*IF(volkedv=0,1,(1-volkedv))","v":0}]
[]
[]
[]
[]
[]
[]
[]
[]
[]
[]
[]
[]
[]
[]
[]
[null,null,null,"Lejárati Dátum",null,null,null,null,"Verzió",null,null,"lejárati jelszó"]
[null,null,null,"2021-12-31",null,null,null,null,"v1.96",null,null,"felelosseg"]
[]
[]
[null,null,null,"Ambrus Péter",null,null,"ambrus.peter@unionbiztosito.hu",null,null,"666-7656"]
[null,null,null,"Árokszállási Zoltán",null,null,"ajanlatkeres@unionbiztosito.hu",null,null,"486-4366"]
[null,null,null,"Csanádi Zoltán",null,null,"csanadi.zoltan@unionbiztosito.hu",null,null,"486-4235"]
[null,null,null,"Dobi László",null,null,"dobi.laszlogabor@unionbiztosito.hu",null,null,"486-4346"]
[null,null,null,"Hajdók Viktória",null,null,"hajdok.viktoria@unionbiztosito.hu",null,null,"486-4213"]
[null,null,null,"Klinger József",null,null,"klinger.jozsef@unionbiztosito.hu",null,null,"486-4232"]
[null,null,null,"Utry Oszkár",null,null,"ajanlatkeres@unionbiztosito.hu",null,null,"666-7652"]

{"sheet":"Ajánlat2","index":3,"n_rows":88,"n_cols":12,"rows_kept":88,"cut":false,"hidden":false,"merged":[[32,1,32,9],[87,3,87,8],[86,3,86,8],[20,3,20,5],[23,3,23,5],[25,3,25,5],[69,1,69,9],[66,1,66,9],[33,1,33,9],[41,1,41,9],[42,1,42,9],[39,1,39,9],[35,1,35,9],[62,1,62,9],[48,1,48,9],[52,1,52,9],[37,11,37,17],[64,1,64,9],[77,2,77,9],[78,2,78,9],[73,1,73,9],[75,2,75,9],[76,2,76,9],[85,1,85,2],[34,1,34,9],[46,1,46,9],[59,1,59,9],[50,1,50,9],[37,1,37,9],[81,2,81,9],[54,1,54,9],[57,1,57,9],[83,2,83,9],[53,1,53,9]]}
[null,"Kis és középvállallatok felelősségbiztosítása",null,null,null,null,null,null,null,null,null,"SZÍNKÓDOK, MAGYARÁZATOK"]
[null,"Biztosított kockázatok:","Általános felelősségbiztosítás"]
[null,null,"valamint:"]
[null,"Szolgáltatói felelősségbiztosítás",null,null,null,null,null,null,null,null,null,"innentől választható / legördülő menü"]
[null,"Szolgáltatói felelősség kiterjesztve a szolgáltatás tárgyára (egyedi záradék szerint)",null,null,null,null,null,null,null,null,null,"csak akkor választható, ha a szolg fel korábban kiválasztásra került"]
[null,"Szolgáltatói felelősség kiterjesztve rakodási tevékenységre (egyedi záradék szerint)",null,null,null,null,null,null,null,null,null,"csak akkor választható, ha a szolg fel korábban kiválasztásra került"]
[null,"Termékfelelősség-biztosítás"]
[null,"Kiterjesztett termékfelelősség-biztosítás",null,null,null,null,null,null,null,null,null,"csak akkor választható, ha a term fel korábban kiválasztásra került"]
[null,"Bérlői felelősségbiztosítás"]
[null,"Bérbeadói felelősségbiztosítás"]
[null,"Munkáltatói felelősségbiztosítás"]
[null,"Környezetszennyezési felelősségbiztosítás"]
[null,"Alvállalkozói fedezet (egyedi záradék szerint)"]
[null,"Építőipari tevékenység fedezete (egyedi záradék szerint)",null,null,null,null,null,null,null,null,null,"ha 5-ös kock. osztály, ez feljön, ÉS az önrész kötelezően min. 10%, de min 100 000 Ft/kár"]
[null,"Területi hatály kiterjesztése Európa (egyedi záradék szerint)",null,null,null,null,null,null,null,null,null,"ha Európa"]
[]
[null,"Dolgozói létszám:",null,14,"fő",null,null,null,null,null,null,"opcionálisan (munk fel esetén) kitöltendő mező"]
[]
[null,"Díjszámítási alap (éves bruttó forgalom):",null,2465,"MFt",null,null,null,null,null,null,"kötelezően kitöltendő mező"]
[]
[null,"Kombinált limit:",null,"5 MFt/kár, 10 MFt/év",null,null,null,null,null,null,null,"választható limitek legördülő menüben"]
[]
[]
[null,"Önrész:",null,"10 %, de min. 25 000 Ft",null,null,null,null,null,null,null,"választható önrészek legördülő menüben"]
[]
[null,"Díjtétel:",null,{"$f":"D28/(D19*1000000)*100","v":0},null,null,null,null,null,null,null,"háttértábla (tarifáló) alapján"]
[]
[null,"Éves díj:",null,{"$f":"Ajánlat1!C170","v":0},null,null,null,null,null,null,null,"háttértábla (tariáfló) alapján"]
[]
[null,"Egészségügyi szolgáltatók szakmai felelősségbiztosítása"]
[]
[null,"Felelősségbiztosítások Szerződési Feltételei (U70060)"]
[null,"Egészségügyi, gyógyszerészi, szociális, illetve természetgyógyászati szolgáltatói tevékenységet folytatók szakmai felelősségbiztosításának biztosítási feltételei (U70067)"]
[null,"Szolgáltatói felelősségbiztosítás különös biztosítási feltételek",null,null,null,null,null,null,null,null,null,"ha építőipari tevékenység fedezetét választja, akkor ez jön föl az A38 helyett"]
[null,"Általános felelősségbiztosítás feltételei, a 3./h.) pontban írt kizáró rendelkezés első fordulatának feloldása mellett azzal, hogy az épületek, építmények repedéseivel összefüggésben bekövetkezett károkra, valamint az épületben, építményben vibráció, vagy – a föld-, illetve egyéb támaszt is ideértve – teherhordó elem eltávolítása, meggyengítése, vagy megépítésének elmaradása miatt bekövetkező károkra vonatkozó kizárás változatlanul hatályban marad.",null,null,null,null,null,null,null,null,null,"innentől akkor jönnek föl, ha fent kiválasztásra kerültek"]
[null,"Szolgáltatói felelősségbiztosítás különös feltételei, a 3./i.) pontban írt kizáró rendelkezés első fordulatának feloldása mellett azzal, hogy az épületek, építmények repedéseivel összefüggésben bekövetkezett károkra, valamint az épületben, építményben vibráció, vagy – a föld-, illetve egyéb támaszt is ideértve – teherhordó elem eltávolítása, meggyengítése, vagy megépítésének elmaradása miatt bekövetkező károkra vonatkozó kizárás változatlanul hatályban marad.",null,null,null,null,null,null,null,null,null,"ha építőipari tevékenység fedezetét választja, akkor ez jön föl az A41 helyett"]
[]
[null,"Szolgáltatás tárgyában okozott károk egyedi záradéka\n1. A szolgáltatói felelősségbiztosítási fedezet - a Szolgáltatói felelősségbiztosítás különös feltételei 3.f.) pontjában, valamint e körben (a letéti felelősséget ide nem értve) a 3.e.) pontjában írt kizáró rendelkezések feloldása, de egyéb rendelkezései változatlan alkalmazása mellett - kiterjed azokban a dolgokban keletkezett károkra is, amelyek a szolgáltatás tárgyát képezik, illetve amelyekre a biztosított szolgáltatása irányul. \n2. Nem terjed ki a biztosítási fedezet \na) az olyan vagyontárgyak káraira, melyek a szolgáltatás megkezdésekor már sérültek, hibásak, elhasználódottak voltak, vagy egyéb okból cserére szorultak, \nb) az esztétikai károkra, \nc) a szolgáltatás korszerűtlenségével összefüggő kártérítési igényekre.\nA jelen egyedi záradékban nem szabályozott kérdések tekintetében a Felelősségbiztosítások Szerződési Feltételei, a Szolgáltatói felelősségbiztosítás különös biztosítási feltételei, valamint a mindenkor hatályos magyar jogszabályok vonatkozó rendelkezései irányadóak.",null,null,null,null,null,null,null,null,null,"a fedezet választása esetén \"feljön\""]
[]
[null,"Rakodási szolgáltatást nyújtók felelősségbiztosításának egyedi záradéka\nA jelen Egyedi Záradék alkalmazásában biztosítási esemény az idegen gépjárműre, illetve gépjárműről történő le- és felrakodás során az idegen gépjárműben okozott dologi kár, abban az esetben is, ha a rakodás daruval, illetve targoncával történt. \nA fedezet kiterjed a telephelyen daruval, illetve targoncával harmadik személyeknek okozott egyéb dologi károkra is, ide nem értve a rakodott áruban okozott kárt. \nA jelen Egyedi Záradékban nem szabályozott kérdések tekintetében a Szolgáltatói felelősségbiztosítás különös feltételeinek rendelkezései irányadóak.\n",null,null,null,null,null,null,null,null,null,"a fedezet választása esetén \"feljön\""]
[]
[null,"Termékfelelősség-biztosítás különös biztosítási feltételek (Hatályos: 2014.03.15-től)",null,null,null,null,null,null,null,null,null,"a fedezet választása esetén \"feljön\""]
[null,"Kiterjesztett termékfelelősség-biztosítás kiegészítő biztosítási feltételek (Hatályos: 2014.03.15-től)",null,null,null,null,null,null,null,null,null,"a fedezet választása esetén \"feljön\""]
[null,"Bérlői felelősségbiztosítás különös biztosítási feltételek",null,null,null,null,null,null,null,null,null,"a fedezet választása esetén \"feljön\""]
[null,"Bérbeadói felelősségbiztosítás különös biztosítási feltételek",null,null,null,null,null,null,null,null,null,"a fedezet választása esetén \"feljön\""]
[null,"Munkáltatói felelősségbiztosítás különös biztosítási feltételek (Hatályos: 2014.03.15-től)",null,null,null,null,null,null,null,null,null,"a fedezet választása esetén \"feljön\""]
[null,"Környezetszennyezési felelősségbiztosítás különös biztosítási feltételek",null,null,null,null,null,null,null,null,null,"a fedezet választása esetén \"feljön\""]
[]
[null,"Az általános felelősségbiztosítási fedezet kiterjesztése alvállalkozókra\nAz általános felelősségbiztosítási fedezet a szerződésben írt limit erejéig, a vonatkozó feltételek változatlan alkalmazása mellett kiterjed a biztosított alvállalkozóira is, amennyiben a kárt a biztosított alvállalkozójaként eljárva, ebbéli minőségükben okozták.\nA jelen felelősségbiztosítási fedezet annyiban áll fönn, amennyiben a kár más biztosítási fedezet (elsődleges fedezet) alapján nem térül meg. A jelen felelősségbiztosítás elsődleges fedezet fennállta esetén a kárra csak annyiban nyújt fedezetet, amennyiben az elsődleges fedezet a biztosítási esemény bekövetkezte előtt bármely okból megszűnt, vagy a biztosítási feltételek eltérő rendelkezése miatt az elsődleges fedezet alapján szolgáltatás nyújtására nem kerül sor, vagy a limit alacsonyabb volta miatt az elsődleges fedezet alapján nyújtott szolgáltatás részleges.\nA biztosító által nyújtott alvállalkozói fedezet nem szélesebb, mint a vonatkozó feltételek alapján a biztosított számára nyújtott fedezet. \nNem terjed ki a fedezet ezen alvállalkozók további alvállalkozóira, valamint a biztosítottak egymásnak okozott káraira. \n",null,null,null,null,null,null,null,null,null,"alvállalkozói fedezet esetén \"feljön\""]
[]
[null,"A szolgáltatói felelősségbiztosítási fedezet kiterjesztése alvállalkozókra\nA szolgáltatói felelősségbiztosítási fedezet a szerződésben írt limit erejéig, a vonatkozó feltételek változatlan alkalmazása mellett kiterjed a biztosított alvállalkozóira is, amennyiben a kárt a biztosított alvállalkozójaként eljárva, ebbéli minőségükben okozták.\nA jelen felelősségbiztosítási fedezet annyiban áll fönn, amennyiben a kár más biztosítási fedezet (elsődleges fedezet) alapján nem térül meg. A jelen felelősségbiztosítás elsődleges fedezet fennállta esetén a kárra csak annyiban nyújt fedezetet, amennyiben az elsődleges fedezet a biztosítási esemény bekövetkezte előtt bármely okból megszűnt, vagy a biztosítási feltételek eltérő rendelkezése miatt az elsődleges fedezet alapján szolgáltatás nyújtására nem kerül sor, vagy a limit alacsonyabb volta miatt az elsődleges fedezet alapján nyújtott szolgáltatás részleges.\nA biztosító által nyújtott alvállalkozói fedezet nem szélesebb, mint a vonatkozó feltételek alapján a biztosított számára nyújtott fedezet. \nNem terjed ki a fedezet ezen alvállalkozók további alvállalkozóira, valamint a biztosítottak egymásnak okozott káraira. \n",null,null,null,null,null,null,null,null,null,"csak akkor jön fel, ha a szolg fel és az alvállalkozói fedezet korábban kiválasztásra került"]
[]
[null,"Építőipari tevékenység fedezetének egyedi záradéka"]
[null,"A felelősségbiztosítási fedezet annyiban áll fönn, amennyiben a kár más biztosítási fedezet (elsődleges fedezet) alapján nem térül meg. A jelen felelősségbiztosítás elsődleges fedezet fennállta esetén a kárra csak annyiban nyújt fedezetet, amennyiben az elsődleges fedezet a biztosítási esemény bekövetkezte előtt bármely okból megszűnt, vagy a biztosítási feltételek eltérő rendelkezése miatt az elsődleges fedezet alapján szolgáltatás nyújtására nem kerül sor, vagy a limit alacsonyabb volta miatt az elsődleges fedezet alapján nyújtott szolgáltatás részleges."]
[null,"A biztosítási fedezet nem terjed ki az alábbi tevékenységekre:"]
[null,"1.     bontási munka,"]
[null,"2.     gépi földmunka,"]
[null,"3.     tetőcsere, tetőjavítás, a héjazat megbontásával járó munka, tetőtér-beépítés,"]
[null,"4.     ún. foghíjbeépítés,"]
[null,"5.     mélyépítési tevékenység, illetve a vonalas létesítményeken végzett munkák,\n6.    az egyszerű bejelentéshez kötött építési tevékenységhez kapcsolódó fővállalkozói kivitelezői \n       tevékenységre.",null,null,null,null,null,null,null,null,null,"5-ös kockázati osztály esetén kötelező (feljön)"]
[]
[null,"A biztosítási fedezet területi hatályának kiterjesztése Európa területére",null,null,null,null,null,null,null,null,null,"Ha Európa"]
[null,"A biztosítás területi hatálya kiterjed az Európa területén okozott, illetve bekövetkezett károkra is."]
[]
[null,"EGYÉB"]
[]
[null,"A biztosítási szerződésre a fentiekben hivatkozott biztosítási feltételek és az ajánlatban foglalt egyedi záradékok együttesen vonatkoznak.\nA Biztosító nem nyújt fedezetet, nem teljesít kárkifizetést, valamint nem nyújt szolgáltatást, amennyiben ezen fedezet nyújtásával, illetve kár kifizetésével a Biztosító sértené  az Egyesült Nemzetek Szervezetének határozata szerinti bármely szankcióit, rendelkezéseit, vagy rendeleteit,  valamint Magyarország, az Európai Unió, illetve az Egyesült Államok kereskedelmi, pénzügyi embargóit vagy gazdasági szankcióit, törvényeit vagy rendeleteit, (feltéve, hogy ezek nem sértik az biztosítóra alkalmazandó szabályozásokat vagy nemzeti jogszabályokat).\n\nNem terjed ki a biztosítás azokra a károkra, amelyek bármilyen (bakteriális, vírusos, stb.) kórokozói eredetű járványos megbetegedéssel, betegséggel, vagy fertőzéssel összefüggésben következnek be, és amelyek a kórokozó bármely fajtájától, mutációjától, illetve variánsától származnak."]
[]
[null,"Díjfizetési engedmény:"]
[null,"Amennyiben a szerződő/biztosított a biztosítási díjat az alábbi díjfizetési gyakorisággal egyenlíti ki, akkor a biztosító a számára a fentiekben megállapított biztosítási díjakból az alábbi díjfizetési engedményeket nyújtja:"]
[null," - éves díjfizetés esetén: 5,0%"]
[null," - féléves díjfizetés esetén: 2,5%."]
[]
[null,"Ajánlatot teszek a túloldalon részletezett biztosításra, amelynek alapján az Union Vienna Insurance Group Biztosító Zrt. azt a kötelezettséget vállalja, hogy díjfizetés ellenében készpénzben megtéríti a különös feltételekben felsorolt biztosítási események során bekövetkező azon károkat, amelyekre a biztosítási szerződés kiterjed. Kijelentem, hogy az ajánlattétel előtt biztosítási igényem felmérése nyomán a vonatkozó termékismertetőt átvettem, áttanulmányoztam és megértettem, a jogszabályban előírt tájékoztatást megkaptam, a biztosítási feltételeket átvettem, áttanulmányoztam és megértettem.\nKijelentem, hogy az Adatkezelési tájékoztató a biztosítási ajánlat aláírását megelőzően részemre átadásra került, és tudomással bírok arról, hogy ezen dokumentum a biztosító honlapján (www.union.hu) bármikor megtekinthető."]
[]
[null,"Tudomásul veszem, hogy:","- jelen ajánlat a biztosító kockázatelbírálásának alapja, továbbá, hogy a biztosítónak az ajánlat beérkezésétől számított 15 nap áll rendelkezésére a kockázat elbírálására,"]
[null,null,"- a biztosító a kockázatelbírálás eredményeként az ajánlatot jogosult elutasítani, az elutasítást nem köteles megindokolni."]
[null,null,"- a biztosító kártérítése - betöréses lopás esetén - a kár időpontjában fennálló vagyonvédelmi színvonal függvényében történik"]
[null,null,"- a biztosító a tényleges adatoktól való eltérés esetén az alul- és túlbiztosítottságot vizsgálja"]
[]
[]
[null,"Kijelentem, hogy:","- a Felelősségbiztosítások Szerződési Feltételeiben és az Egészségügyi, gyógyszerészi, szociális, illetve természetgyógyászati szolgáltatói tevékenységet folytatók szakmai felelősségbiztosításának feltételeiben foglaltakat az ajánlat aláírása előtt megismertem,"]
[null,null,"- a közölt adatok a valóságnak megfelelnek,"]
[null,null,"- jelen ajánlatomban minden biztosítási szándékommal kapcsolatos igényemet rögzítettek, más szóbeli megállapodás nem történt."]
[]
[null,{"$f":"\"Kelt: \" & keltez & \", \" & TEXT(keltdat, \"ÉÉÉÉ.hh.nn\")","v":"Kelt: 0, 2021.07.01"}]
[null,null,null,"Szerződő cégszerű aláírása"]
[null,null,null,"UNION Vienna Insurance Group Biztosító Zrt."]

{"sheet":"Tevékenységi lista","index":4,"n_rows":117,"n_cols":12,"rows_kept":117,"cut":false,"hidden":true,"merged":[]}
["Biztosított tevékenység:","5 / 15","10 / 20"]
["addiktológia (szenvedélybetegségek orvoslása)",13500,16000,null,null,null,{"$f":"IF(--ISNUMBER(SEARCH(tev.lista,A2)),MAX($G$1:G1)+1,\"\")","v":1},{"$f":"IFERROR(INDEX($A$2:$A$117,MATCH(ROWS($G$2:G2),$G$2:$G$117,0)),\"\")","v":"addiktológia (szenvedélybetegségek orvoslása)"},null,{"$f":"$H$2:INDEX($H$2:$H$117,COUNTIF($H$2:$H$117,\"?*\"))","v":"addiktológia (szenvedélybetegségek orvoslása)"},null,{"$f":"IF(J2=H2,1,0)","v":1}]
["állatorvos-egészségügyi szakszemélyzet (orvossal együtt kötött szerződés esetén)",1500,1800,null,null,null,{"$f":"IF(--ISNUMBER(SEARCH(tev.lista,A3)),MAX($G$1:G2)+1,\"\")","v":2},{"$f":"IFERROR(INDEX($A$2:$A$117,MATCH(ROWS($G$2:G3),$G$2:$G$117,0)),\"\")","v":"állatorvos-egészségügyi szakszemélyzet (orvossal együtt kötött szerződés esetén)"}]
["állatorvoslás (nem haszonállatok orvoslása műtéti tevékenység nélkül)",13500,16000,null,null,null,{"$f":"IF(--ISNUMBER(SEARCH(tev.lista,A4)),MAX($G$1:G3)+1,\"\")","v":3},{"$f":"IFERROR(INDEX($A$2:$A$117,MATCH(ROWS($G$2:G4),$G$2:$G$117,0)),\"\")","v":"állatorvoslás (nem haszonállatok orvoslása műtéti tevékenység nélkül)"}]
["állatorvoslás (nem haszonállatok orvoslása, műtéti tevékenységgel)",33500,40000,null,null,null,{"$f":"IF(--ISNUMBER(SEARCH(tev.lista,A5)),MAX($G$1:G4)+1,\"\")","v":4},{"$f":"IFERROR(INDEX($A$2:$A$117,MATCH(ROWS($G$2:G5),$G$2:$G$117,0)),\"\")","v":"állatorvoslás (nem haszonállatok orvoslása, műtéti tevékenységgel)"}]
["allergologia",19000,23500,null,null,null,{"$f":"IF(--ISNUMBER(SEARCH(tev.lista,A6)),MAX($G$1:G5)+1,\"\")","v":5},{"$f":"IFERROR(INDEX($A$2:$A$117,MATCH(ROWS($G$2:G6),$G$2:$G$117,0)),\"\")","v":"allergologia"}]
["általános orvos",33500,40000,null,null,null,{"$f":"IF(--ISNUMBER(SEARCH(tev.lista,A7)),MAX($G$1:G6)+1,\"\")","v":6},{"$f":"IFERROR(INDEX($A$2:$A$117,MATCH(ROWS($G$2:G7),$G$2:$G$117,0)),\"\")","v":"általános orvos"}]
["andrológia (férfi betegségek orvoslása)",33500,40000,null,null,null,{"$f":"IF(--ISNUMBER(SEARCH(tev.lista,A8)),MAX($G$1:G7)+1,\"\")","v":7},{"$f":"IFERROR(INDEX($A$2:$A$117,MATCH(ROWS($G$2:G8),$G$2:$G$117,0)),\"\")","v":"andrológia (férfi betegségek orvoslása)"}]
["ápoló",1500,1800,null,null,null,{"$f":"IF(--ISNUMBER(SEARCH(tev.lista,A9)),MAX($G$1:G8)+1,\"\")","v":8},{"$f":"IFERROR(INDEX($A$2:$A$117,MATCH(ROWS($G$2:G9),$G$2:$G$117,0)),\"\")","v":"ápoló"}]
["asszisztens",1500,1800,null,null,null,{"$f":"IF(--ISNUMBER(SEARCH(tev.lista,A10)),MAX($G$1:G9)+1,\"\")","v":9},{"$f":"IFERROR(INDEX($A$2:$A$117,MATCH(ROWS($G$2:G10),$G$2:$G$117,0)),\"\")","v":"asszisztens"}]
["audiológia (hallástan)",19000,23500,null,null,null,{"$f":"IF(--ISNUMBER(SEARCH(tev.lista,A11)),MAX($G$1:G10)+1,\"\")","v":10},{"$f":"IFERROR(INDEX($A$2:$A$117,MATCH(ROWS($G$2:G11),$G$2:$G$117,0)),\"\")","v":"audiológia (hallástan)"}]
["belgyógyász",33500,40000,null,null,null,{"$f":"IF(--ISNUMBER(SEARCH(tev.lista,A12)),MAX($G$1:G11)+1,\"\")","v":11},{"$f":"IFERROR(INDEX($A$2:$A$117,MATCH(ROWS($G$2:G12),$G$2:$G$117,0)),\"\")","v":"belgyógyász"}]
["betegszállító",1500,1800,null,null,null,{"$f":"IF(--ISNUMBER(SEARCH(tev.lista,A13)),MAX($G$1:G12)+1,\"\")","v":12},{"$f":"IFERROR(INDEX($A$2:$A$117,MATCH(ROWS($G$2:G13),$G$2:$G$117,0)),\"\")","v":"betegszállító"}]
["biorezonancián alapuló eljárások",39000,46000,null,null,null,{"$f":"IF(--ISNUMBER(SEARCH(tev.lista,A14)),MAX($G$1:G13)+1,\"\")","v":13},{"$f":"IFERROR(INDEX($A$2:$A$117,MATCH(ROWS($G$2:G14),$G$2:$G$117,0)),\"\")","v":"biorezonancián alapuló eljárások"}]
["boncmester",1500,1800,null,null,null,{"$f":"IF(--ISNUMBER(SEARCH(tev.lista,A15)),MAX($G$1:G14)+1,\"\")","v":14},{"$f":"IFERROR(INDEX($A$2:$A$117,MATCH(ROWS($G$2:G15),$G$2:$G$117,0)),\"\")","v":"boncmester"}]
["bőrgyógyász",33500,40000,null,null,null,{"$f":"IF(--ISNUMBER(SEARCH(tev.lista,A16)),MAX($G$1:G15)+1,\"\")","v":15},{"$f":"IFERROR(INDEX($A$2:$A$117,MATCH(ROWS($G$2:G16),$G$2:$G$117,0)),\"\")","v":"bőrgyógyász"}]
["bőrgyógyász egynapos sebészettel",{"$f":"B16*1.8","v":60300},{"$f":"C16*1.8","v":72000},null,null,null,{"$f":"IF(--ISNUMBER(SEARCH(tev.lista,A17)),MAX($G$1:G16)+1,\"\")","v":16},{"$f":"IFERROR(INDEX($A$2:$A$117,MATCH(ROWS($G$2:G17),$G$2:$G$117,0)),\"\")","v":"bőrgyógyász egynapos sebészettel"}]
["cytopatológia (kórszövettan)",33500,40000,null,null,null,{"$f":"IF(--ISNUMBER(SEARCH(tev.lista,A18)),MAX($G$1:G17)+1,\"\")","v":17},{"$f":"IFERROR(INDEX($A$2:$A$117,MATCH(ROWS($G$2:G18),$G$2:$G$117,0)),\"\")","v":"cytopatológia (kórszövettan)"}]
["csecsemő-gyermekgyógyász",33500,40000,null,null,null,{"$f":"IF(--ISNUMBER(SEARCH(tev.lista,A19)),MAX($G$1:G18)+1,\"\")","v":18},{"$f":"IFERROR(INDEX($A$2:$A$117,MATCH(ROWS($G$2:G19),$G$2:$G$117,0)),\"\")","v":"csecsemő-gyermekgyógyász"}]
["diabetológus",33500,40000,null,null,null,{"$f":"IF(--ISNUMBER(SEARCH(tev.lista,A20)),MAX($G$1:G19)+1,\"\")","v":19},{"$f":"IFERROR(INDEX($A$2:$A$117,MATCH(ROWS($G$2:G20),$G$2:$G$117,0)),\"\")","v":"diabetológus"}]
["dietetikus",1500,1800,null,null,null,{"$f":"IF(--ISNUMBER(SEARCH(tev.lista,A21)),MAX($G$1:G20)+1,\"\")","v":20},{"$f":"IFERROR(INDEX($A$2:$A$117,MATCH(ROWS($G$2:G21),$G$2:$G$117,0)),\"\")","v":"dietetikus"}]
["egészségbiztosítás",13500,16000,null,null,null,{"$f":"IF(--ISNUMBER(SEARCH(tev.lista,A22)),MAX($G$1:G21)+1,\"\")","v":21},{"$f":"IFERROR(INDEX($A$2:$A$117,MATCH(ROWS($G$2:G22),$G$2:$G$117,0)),\"\")","v":"egészségbiztosítás"}]
["élelmezésvezető",1500,1800,null,null,null,{"$f":"IF(--ISNUMBER(SEARCH(tev.lista,A23)),MAX($G$1:G22)+1,\"\")","v":22},{"$f":"IFERROR(INDEX($A$2:$A$117,MATCH(ROWS($G$2:G23),$G$2:$G$117,0)),\"\")","v":"élelmezésvezető"}]
["endokrinológia (hormonrendszer orvoslása)",19000,23500,null,null,null,{"$f":"IF(--ISNUMBER(SEARCH(tev.lista,A24)),MAX($G$1:G23)+1,\"\")","v":23},{"$f":"IFERROR(INDEX($A$2:$A$117,MATCH(ROWS($G$2:G24),$G$2:$G$117,0)),\"\")","v":"endokrinológia (hormonrendszer orvoslása)"}]
["eü. ellenőr",1500,1800,null,null,null,{"$f":"IF(--ISNUMBER(SEARCH(tev.lista,A25)),MAX($G$1:G24)+1,\"\")","v":24},{"$f":"IFERROR(INDEX($A$2:$A$117,MATCH(ROWS($G$2:G25),$G$2:$G$117,0)),\"\")","v":"eü. ellenőr"}]
["eü. menedzser",1500,1800,null,null,null,{"$f":"IF(--ISNUMBER(SEARCH(tev.lista,A26)),MAX($G$1:G25)+1,\"\")","v":25},{"$f":"IFERROR(INDEX($A$2:$A$117,MATCH(ROWS($G$2:G26),$G$2:$G$117,0)),\"\")","v":"eü. menedzser"}]
["eü. szakoktató",1500,1800,null,null,null,{"$f":"IF(--ISNUMBER(SEARCH(tev.lista,A27)),MAX($G$1:G26)+1,\"\")","v":26},{"$f":"IFERROR(INDEX($A$2:$A$117,MATCH(ROWS($G$2:G27),$G$2:$G$117,0)),\"\")","v":"eü. szakoktató"}]
["fertőző betegségek orvoslása",19000,23500,null,null,null,{"$f":"IF(--ISNUMBER(SEARCH(tev.lista,A28)),MAX($G$1:G27)+1,\"\")","v":27},{"$f":"IFERROR(INDEX($A$2:$A$117,MATCH(ROWS($G$2:G28),$G$2:$G$117,0)),\"\")","v":"fertőző betegségek orvoslása"}]
["fizikális medicina és rehabilitációs orvoslás",19000,23500,null,null,null,{"$f":"IF(--ISNUMBER(SEARCH(tev.lista,A29)),MAX($G$1:G28)+1,\"\")","v":28},{"$f":"IFERROR(INDEX($A$2:$A$117,MATCH(ROWS($G$2:G29),$G$2:$G$117,0)),\"\")","v":"fizikális medicina és rehabilitációs orvoslás"}]
["fizioterápia",19000,23500,null,null,null,{"$f":"IF(--ISNUMBER(SEARCH(tev.lista,A30)),MAX($G$1:G29)+1,\"\")","v":29},{"$f":"IFERROR(INDEX($A$2:$A$117,MATCH(ROWS($G$2:G30),$G$2:$G$117,0)),\"\")","v":"fizioterápia"}]
["foniátria (a beszédhangok képzési zavarának gyógyítása)",13500,16000,null,null,null,{"$f":"IF(--ISNUMBER(SEARCH(tev.lista,A31)),MAX($G$1:G30)+1,\"\")","v":30},{"$f":"IFERROR(INDEX($A$2:$A$117,MATCH(ROWS($G$2:G31),$G$2:$G$117,0)),\"\")","v":"foniátria (a beszédhangok képzési zavarának gyógyítása)"}]
["fül-orr-gégész (csecsemő, gyermek, felnőtt)",33500,40000,null,null,null,{"$f":"IF(--ISNUMBER(SEARCH(tev.lista,A32)),MAX($G$1:G31)+1,\"\")","v":31},{"$f":"IFERROR(INDEX($A$2:$A$117,MATCH(ROWS($G$2:G32),$G$2:$G$117,0)),\"\")","v":"fül-orr-gégész (csecsemő, gyermek, felnőtt)"}]
["gasztroenterológia (emésztőszervi megbetegedések, gyermek és felnőtt)",19000,23500,null,null,null,{"$f":"IF(--ISNUMBER(SEARCH(tev.lista,A33)),MAX($G$1:G32)+1,\"\")","v":32},{"$f":"IFERROR(INDEX($A$2:$A$117,MATCH(ROWS($G$2:G33),$G$2:$G$117,0)),\"\")","v":"gasztroenterológia (emésztőszervi megbetegedések, gyermek és felnőtt)"}]
["geriátria (időskori megbetegedések orvoslása)",19000,23500,null,null,null,{"$f":"IF(--ISNUMBER(SEARCH(tev.lista,A34)),MAX($G$1:G33)+1,\"\")","v":33},{"$f":"IFERROR(INDEX($A$2:$A$117,MATCH(ROWS($G$2:G34),$G$2:$G$117,0)),\"\")","v":"geriátria (időskori megbetegedések orvoslása)"}]
["gondozó",1500,1800,null,null,null,{"$f":"IF(--ISNUMBER(SEARCH(tev.lista,A35)),MAX($G$1:G34)+1,\"\")","v":34},{"$f":"IFERROR(INDEX($A$2:$A$117,MATCH(ROWS($G$2:G35),$G$2:$G$117,0)),\"\")","v":"gondozó"}]
["gyermeknőgyógyászat",33500,40000,null,null,null,{"$f":"IF(--ISNUMBER(SEARCH(tev.lista,A36)),MAX($G$1:G35)+1,\"\")","v":35},{"$f":"IFERROR(INDEX($A$2:$A$117,MATCH(ROWS($G$2:G36),$G$2:$G$117,0)),\"\")","v":"gyermeknőgyógyászat"}]
["Gyógyászati segédeszköz forgalmazás, javítás, kölcsönzés",5500,7000,null,null,null,{"$f":"IF(--ISNUMBER(SEARCH(tev.lista,A37)),MAX($G$1:G36)+1,\"\")","v":36},{"$f":"IFERROR(INDEX($A$2:$A$117,MATCH(ROWS($G$2:G37),$G$2:$G$117,0)),\"\")","v":"Gyógyászati segédeszköz forgalmazás, javítás, kölcsönzés"}]
["gyógymasszőr",1500,1800,null,null,null,{"$f":"IF(--ISNUMBER(SEARCH(tev.lista,A38)),MAX($G$1:G37)+1,\"\")","v":37},{"$f":"IFERROR(INDEX($A$2:$A$117,MATCH(ROWS($G$2:G38),$G$2:$G$117,0)),\"\")","v":"gyógymasszőr"}]
["Gyógyszerész",19000,24000,null,null,null,{"$f":"IF(--ISNUMBER(SEARCH(tev.lista,A39)),MAX($G$1:G38)+1,\"\")","v":38},{"$f":"IFERROR(INDEX($A$2:$A$117,MATCH(ROWS($G$2:G39),$G$2:$G$117,0)),\"\")","v":"Gyógyszerész"}]
["Gyógyszerész-asszisztens",1500,1800,null,null,null,{"$f":"IF(--ISNUMBER(SEARCH(tev.lista,A40)),MAX($G$1:G39)+1,\"\")","v":39},{"$f":"IFERROR(INDEX($A$2:$A$117,MATCH(ROWS($G$2:G40),$G$2:$G$117,0)),\"\")","v":"Gyógyszerész-asszisztens"}]
["gyógytornász",1500,1800,null,null,null,{"$f":"IF(--ISNUMBER(SEARCH(tev.lista,A41)),MAX($G$1:G40)+1,\"\")","v":40},{"$f":"IFERROR(INDEX($A$2:$A$117,MATCH(ROWS($G$2:G41),$G$2:$G$117,0)),\"\")","v":"gyógytornász"}]
["haematológia (vérképző rendszer megbetegedései)",19000,23500,null,null,null,{"$f":"IF(--ISNUMBER(SEARCH(tev.lista,A42)),MAX($G$1:G41)+1,\"\")","v":41},{"$f":"IFERROR(INDEX($A$2:$A$117,MATCH(ROWS($G$2:G42),$G$2:$G$117,0)),\"\")","v":"haematológia (vérképző rendszer megbetegedései)"}]
["hagyományos kínai orvoslás",39000,46000,null,null,null,{"$f":"IF(--ISNUMBER(SEARCH(tev.lista,A43)),MAX($G$1:G42)+1,\"\")","v":42},{"$f":"IFERROR(INDEX($A$2:$A$117,MATCH(ROWS($G$2:G43),$G$2:$G$117,0)),\"\")","v":"hagyományos kínai orvoslás"}]
["házi gyermekorvos",19000,23500,null,null,null,{"$f":"IF(--ISNUMBER(SEARCH(tev.lista,A44)),MAX($G$1:G43)+1,\"\")","v":43},{"$f":"IFERROR(INDEX($A$2:$A$117,MATCH(ROWS($G$2:G44),$G$2:$G$117,0)),\"\")","v":"házi gyermekorvos"}]
["háziorvos",19000,23500,null,null,null,{"$f":"IF(--ISNUMBER(SEARCH(tev.lista,A45)),MAX($G$1:G44)+1,\"\")","v":44},{"$f":"IFERROR(INDEX($A$2:$A$117,MATCH(ROWS($G$2:G45),$G$2:$G$117,0)),\"\")","v":"háziorvos"}]
["homeopátiás eljárások",39000,46000,null,null,null,{"$f":"IF(--ISNUMBER(SEARCH(tev.lista,A46)),MAX($G$1:G45)+1,\"\")","v":45},{"$f":"IFERROR(INDEX($A$2:$A$117,MATCH(ROWS($G$2:G46),$G$2:$G$117,0)),\"\")","v":"homeopátiás eljárások"}]
["honvéd / katasztrófa orvostan",13500,16000,null,null,null,{"$f":"IF(--ISNUMBER(SEARCH(tev.lista,A47)),MAX($G$1:G46)+1,\"\")","v":46},{"$f":"IFERROR(INDEX($A$2:$A$117,MATCH(ROWS($G$2:G47),$G$2:$G$117,0)),\"\")","v":"honvéd / katasztrófa orvostan"}]
["igazságügyi elmeorvostan",13500,16000,null,null,null,{"$f":"IF(--ISNUMBER(SEARCH(tev.lista,A48)),MAX($G$1:G47)+1,\"\")","v":47},{"$f":"IFERROR(INDEX($A$2:$A$117,MATCH(ROWS($G$2:G48),$G$2:$G$117,0)),\"\")","v":"igazságügyi elmeorvostan"}]
["igazságügyi orvostan",13500,16000,null,null,null,{"$f":"IF(--ISNUMBER(SEARCH(tev.lista,A49)),MAX($G$1:G48)+1,\"\")","v":48},{"$f":"IFERROR(INDEX($A$2:$A$117,MATCH(ROWS($G$2:G49),$G$2:$G$117,0)),\"\")","v":"igazságügyi orvostan"}]
["immunológia",13500,16000,null,null,null,{"$f":"IF(--ISNUMBER(SEARCH(tev.lista,A50)),MAX($G$1:G49)+1,\"\")","v":49},{"$f":"IFERROR(INDEX($A$2:$A$117,MATCH(ROWS($G$2:G50),$G$2:$G$117,0)),\"\")","v":"immunológia"}]
["indiai gyógyászati eljárások",39000,46000,null,null,null,{"$f":"IF(--ISNUMBER(SEARCH(tev.lista,A51)),MAX($G$1:G50)+1,\"\")","v":50},{"$f":"IFERROR(INDEX($A$2:$A$117,MATCH(ROWS($G$2:G51),$G$2:$G$117,0)),\"\")","v":"indiai gyógyászati eljárások"}]
["infektológia (fertőző betegségek orvoslása)",19000,23500,null,null,null,{"$f":"IF(--ISNUMBER(SEARCH(tev.lista,A52)),MAX($G$1:G51)+1,\"\")","v":51},{"$f":"IFERROR(INDEX($A$2:$A$117,MATCH(ROWS($G$2:G52),$G$2:$G$117,0)),\"\")","v":"infektológia (fertőző betegségek orvoslása)"}]
["iskola-egészségügy",19000,23500,null,null,null,{"$f":"IF(--ISNUMBER(SEARCH(tev.lista,A53)),MAX($G$1:G52)+1,\"\")","v":52},{"$f":"IFERROR(INDEX($A$2:$A$117,MATCH(ROWS($G$2:G53),$G$2:$G$117,0)),\"\")","v":"iskola-egészségügy"}]
["izotópdiagnosztika",19000,23500,null,null,null,{"$f":"IF(--ISNUMBER(SEARCH(tev.lista,A54)),MAX($G$1:G53)+1,\"\")","v":53},{"$f":"IFERROR(INDEX($A$2:$A$117,MATCH(ROWS($G$2:G54),$G$2:$G$117,0)),\"\")","v":"izotópdiagnosztika"}]
["járványügy, járványügyi laboratóriumi vizsgálatok",19000,23500,null,null,null,{"$f":"IF(--ISNUMBER(SEARCH(tev.lista,A55)),MAX($G$1:G54)+1,\"\")","v":54},{"$f":"IFERROR(INDEX($A$2:$A$117,MATCH(ROWS($G$2:G55),$G$2:$G$117,0)),\"\")","v":"járványügy, járványügyi laboratóriumi vizsgálatok"}]
["kardiológus (csecsemő, gyermek, felnőtt)",33500,40000,null,null,null,{"$f":"IF(--ISNUMBER(SEARCH(tev.lista,A56)),MAX($G$1:G55)+1,\"\")","v":55},{"$f":"IFERROR(INDEX($A$2:$A$117,MATCH(ROWS($G$2:G56),$G$2:$G$117,0)),\"\")","v":"kardiológus (csecsemő, gyermek, felnőtt)"}]
["klinikai genetika",13500,16000,null,null,null,{"$f":"IF(--ISNUMBER(SEARCH(tev.lista,A57)),MAX($G$1:G56)+1,\"\")","v":56},{"$f":"IFERROR(INDEX($A$2:$A$117,MATCH(ROWS($G$2:G57),$G$2:$G$117,0)),\"\")","v":"klinikai genetika"}]
["klinikai immunológia",19000,23500,null,null,null,{"$f":"IF(--ISNUMBER(SEARCH(tev.lista,A58)),MAX($G$1:G57)+1,\"\")","v":57},{"$f":"IFERROR(INDEX($A$2:$A$117,MATCH(ROWS($G$2:G58),$G$2:$G$117,0)),\"\")","v":"klinikai immunológia"}]
["klinikai laboratóriumi vizsgálatok",13500,16000,null,null,null,{"$f":"IF(--ISNUMBER(SEARCH(tev.lista,A59)),MAX($G$1:G58)+1,\"\")","v":58},{"$f":"IFERROR(INDEX($A$2:$A$117,MATCH(ROWS($G$2:G59),$G$2:$G$117,0)),\"\")","v":"klinikai laboratóriumi vizsgálatok"}]
["klinikai szakpszichológia (nem orvos)",13500,16000,null,null,null,{"$f":"IF(--ISNUMBER(SEARCH(tev.lista,A60)),MAX($G$1:G59)+1,\"\")","v":59},{"$f":"IFERROR(INDEX($A$2:$A$117,MATCH(ROWS($G$2:G60),$G$2:$G$117,0)),\"\")","v":"klinikai szakpszichológia (nem orvos)"}]
["kórbonctan-kórszövettan",13500,16000,null,null,null,{"$f":"IF(--ISNUMBER(SEARCH(tev.lista,A61)),MAX($G$1:G60)+1,\"\")","v":60},{"$f":"IFERROR(INDEX($A$2:$A$117,MATCH(ROWS($G$2:G61),$G$2:$G$117,0)),\"\")","v":"kórbonctan-kórszövettan"}]
["közegészségügy / népegészségügy, megelőző orvostan",19000,23500,null,null,null,{"$f":"IF(--ISNUMBER(SEARCH(tev.lista,A62)),MAX($G$1:G61)+1,\"\")","v":61},{"$f":"IFERROR(INDEX($A$2:$A$117,MATCH(ROWS($G$2:G62),$G$2:$G$117,0)),\"\")","v":"közegészségügy / népegészségügy, megelőző orvostan"}]
["laboratóriumi haematológia",13500,16000,null,null,null,{"$f":"IF(--ISNUMBER(SEARCH(tev.lista,A63)),MAX($G$1:G62)+1,\"\")","v":62},{"$f":"IFERROR(INDEX($A$2:$A$117,MATCH(ROWS($G$2:G63),$G$2:$G$117,0)),\"\")","v":"laboratóriumi haematológia"}]
["manuálterápiás eljárások",39000,46000,null,null,null,{"$f":"IF(--ISNUMBER(SEARCH(tev.lista,A64)),MAX($G$1:G63)+1,\"\")","v":63},{"$f":"IFERROR(INDEX($A$2:$A$117,MATCH(ROWS($G$2:G64),$G$2:$G$117,0)),\"\")","v":"manuálterápiás eljárások"}]
["méregtelenítő módok",39000,46000,null,null,null,{"$f":"IF(--ISNUMBER(SEARCH(tev.lista,A65)),MAX($G$1:G64)+1,\"\")","v":64},{"$f":"IFERROR(INDEX($A$2:$A$117,MATCH(ROWS($G$2:G65),$G$2:$G$117,0)),\"\")","v":"méregtelenítő módok"}]
["molekuláris genetikai diagnosztika",13500,16000,null,null,null,{"$f":"IF(--ISNUMBER(SEARCH(tev.lista,A66)),MAX($G$1:G65)+1,\"\")","v":65},{"$f":"IFERROR(INDEX($A$2:$A$117,MATCH(ROWS($G$2:G66),$G$2:$G$117,0)),\"\")","v":"molekuláris genetikai diagnosztika"}]
["mozgásszervi rehabilitáció",19000,23500,null,null,null,{"$f":"IF(--ISNUMBER(SEARCH(tev.lista,A67)),MAX($G$1:G66)+1,\"\")","v":66},{"$f":"IFERROR(INDEX($A$2:$A$117,MATCH(ROWS($G$2:G67),$G$2:$G$117,0)),\"\")","v":"mozgásszervi rehabilitáció"}]
["neonatológia (újszülött–gyógyászat)",33500,40000,null,null,null,{"$f":"IF(--ISNUMBER(SEARCH(tev.lista,A68)),MAX($G$1:G67)+1,\"\")","v":67},{"$f":"IFERROR(INDEX($A$2:$A$117,MATCH(ROWS($G$2:G68),$G$2:$G$117,0)),\"\")","v":"neonatológia (újszülött–gyógyászat)"}]
["neurálterápiás módszerek",39000,46000,null,null,null,{"$f":"IF(--ISNUMBER(SEARCH(tev.lista,A69)),MAX($G$1:G68)+1,\"\")","v":68},{"$f":"IFERROR(INDEX($A$2:$A$117,MATCH(ROWS($G$2:G69),$G$2:$G$117,0)),\"\")","v":"neurálterápiás módszerek"}]
["neurológia (ideggyógyászat, gyermek és felnőtt)",13500,16000,null,null,null,{"$f":"IF(--ISNUMBER(SEARCH(tev.lista,A70)),MAX($G$1:G69)+1,\"\")","v":69},{"$f":"IFERROR(INDEX($A$2:$A$117,MATCH(ROWS($G$2:G70),$G$2:$G$117,0)),\"\")","v":"neurológia (ideggyógyászat, gyermek és felnőtt)"}]
["neuropatológia (idegkórtan)",13500,16000,null,null,null,{"$f":"IF(--ISNUMBER(SEARCH(tev.lista,A71)),MAX($G$1:G70)+1,\"\")","v":70},{"$f":"IFERROR(INDEX($A$2:$A$117,MATCH(ROWS($G$2:G71),$G$2:$G$117,0)),\"\")","v":"neuropatológia (idegkórtan)"}]
["neuroradiológia (képalkotó eljárások)",33500,40000,null,null,null,{"$f":"IF(--ISNUMBER(SEARCH(tev.lista,A72)),MAX($G$1:G71)+1,\"\")","v":71},{"$f":"IFERROR(INDEX($A$2:$A$117,MATCH(ROWS($G$2:G72),$G$2:$G$117,0)),\"\")","v":"neuroradiológia (képalkotó eljárások)"}]
["nővér",1500,1800,null,null,null,{"$f":"IF(--ISNUMBER(SEARCH(tev.lista,A73)),MAX($G$1:G72)+1,\"\")","v":72},{"$f":"IFERROR(INDEX($A$2:$A$117,MATCH(ROWS($G$2:G73),$G$2:$G$117,0)),\"\")","v":"nővér"}]
["onkológia",33500,40000,null,null,null,{"$f":"IF(--ISNUMBER(SEARCH(tev.lista,A74)),MAX($G$1:G73)+1,\"\")","v":73},{"$f":"IFERROR(INDEX($A$2:$A$117,MATCH(ROWS($G$2:G74),$G$2:$G$117,0)),\"\")","v":"onkológia"}]
["optometrista",1500,1800,null,null,null,{"$f":"IF(--ISNUMBER(SEARCH(tev.lista,A75)),MAX($G$1:G74)+1,\"\")","v":74},{"$f":"IFERROR(INDEX($A$2:$A$117,MATCH(ROWS($G$2:G75),$G$2:$G$117,0)),\"\")","v":"optometrista"}]
["ortopédia",19000,23500,null,null,null,{"$f":"IF(--ISNUMBER(SEARCH(tev.lista,A76)),MAX($G$1:G75)+1,\"\")","v":75},{"$f":"IFERROR(INDEX($A$2:$A$117,MATCH(ROWS($G$2:G76),$G$2:$G$117,0)),\"\")","v":"ortopédia"}]
["orvosi laboratóriumi diagnosztika",13500,16000,null,null,null,{"$f":"IF(--ISNUMBER(SEARCH(tev.lista,A77)),MAX($G$1:G76)+1,\"\")","v":76},{"$f":"IFERROR(INDEX($A$2:$A$117,MATCH(ROWS($G$2:G77),$G$2:$G$117,0)),\"\")","v":"orvosi laboratóriumi diagnosztika"}]
["orvosi mikrobiológia",13500,16000,null,null,null,{"$f":"IF(--ISNUMBER(SEARCH(tev.lista,A78)),MAX($G$1:G77)+1,\"\")","v":77},{"$f":"IFERROR(INDEX($A$2:$A$117,MATCH(ROWS($G$2:G78),$G$2:$G$117,0)),\"\")","v":"orvosi mikrobiológia"}]
["orvosi rehabilitáció",19000,23500,null,null,null,{"$f":"IF(--ISNUMBER(SEARCH(tev.lista,A79)),MAX($G$1:G78)+1,\"\")","v":78},{"$f":"IFERROR(INDEX($A$2:$A$117,MATCH(ROWS($G$2:G79),$G$2:$G$117,0)),\"\")","v":"orvosi rehabilitáció"}]
["oxyológia (mentőorvostan)",19000,23500,null,null,null,{"$f":"IF(--ISNUMBER(SEARCH(tev.lista,A80)),MAX($G$1:G79)+1,\"\")","v":79},{"$f":"IFERROR(INDEX($A$2:$A$117,MATCH(ROWS($G$2:G80),$G$2:$G$117,0)),\"\")","v":"oxyológia (mentőorvostan)"}]
["pszichiátria (gyermek és felnőtt)",19000,23500,null,null,null,{"$f":"IF(--ISNUMBER(SEARCH(tev.lista,A81)),MAX($G$1:G80)+1,\"\")","v":80},{"$f":"IFERROR(INDEX($A$2:$A$117,MATCH(ROWS($G$2:G81),$G$2:$G$117,0)),\"\")","v":"pszichiátria (gyermek és felnőtt)"}]
["pszichoterápia",19000,23500,null,null,null,{"$f":"IF(--ISNUMBER(SEARCH(tev.lista,A82)),MAX($G$1:G81)+1,\"\")","v":81},{"$f":"IFERROR(INDEX($A$2:$A$117,MATCH(ROWS($G$2:G82),$G$2:$G$117,0)),\"\")","v":"pszichoterápia"}]
["pulmonologia (tüdőgyógyászat, légúti megbetegedések orvoslása)",19000,23500,null,null,null,{"$f":"IF(--ISNUMBER(SEARCH(tev.lista,A83)),MAX($G$1:G82)+1,\"\")","v":82},{"$f":"IFERROR(INDEX($A$2:$A$117,MATCH(ROWS($G$2:G83),$G$2:$G$117,0)),\"\")","v":"pulmonologia (tüdőgyógyászat, légúti megbetegedések orvoslása)"}]
["radiológia (gyermek és felnőtt)",33500,40000,null,null,null,{"$f":"IF(--ISNUMBER(SEARCH(tev.lista,A84)),MAX($G$1:G83)+1,\"\")","v":83},{"$f":"IFERROR(INDEX($A$2:$A$117,MATCH(ROWS($G$2:G84),$G$2:$G$117,0)),\"\")","v":"radiológia (gyermek és felnőtt)"}]
["repülőorvostan",19000,23500,null,null,null,{"$f":"IF(--ISNUMBER(SEARCH(tev.lista,A85)),MAX($G$1:G84)+1,\"\")","v":84},{"$f":"IFERROR(INDEX($A$2:$A$117,MATCH(ROWS($G$2:G85),$G$2:$G$117,0)),\"\")","v":"repülőorvostan"}]
["reumatológia",19000,23500,null,null,null,{"$f":"IF(--ISNUMBER(SEARCH(tev.lista,A86)),MAX($G$1:G85)+1,\"\")","v":85},{"$f":"IFERROR(INDEX($A$2:$A$117,MATCH(ROWS($G$2:G86),$G$2:$G$117,0)),\"\")","v":"reumatológia"}]
["röntgenológia",33500,40000,null,null,null,{"$f":"IF(--ISNUMBER(SEARCH(tev.lista,A87)),MAX($G$1:G86)+1,\"\")","v":86},{"$f":"IFERROR(INDEX($A$2:$A$117,MATCH(ROWS($G$2:G87),$G$2:$G$117,0)),\"\")","v":"röntgenológia"}]
["sportorvostan",19000,23500,null,null,null,{"$f":"IF(--ISNUMBER(SEARCH(tev.lista,A88)),MAX($G$1:G87)+1,\"\")","v":87},{"$f":"IFERROR(INDEX($A$2:$A$117,MATCH(ROWS($G$2:G88),$G$2:$G$117,0)),\"\")","v":"sportorvostan"}]
["sugárbiológia, sugár-egészségügy",13500,16000,null,null,null,{"$f":"IF(--ISNUMBER(SEARCH(tev.lista,A89)),MAX($G$1:G88)+1,\"\")","v":88},{"$f":"IFERROR(INDEX($A$2:$A$117,MATCH(ROWS($G$2:G89),$G$2:$G$117,0)),\"\")","v":"sugárbiológia, sugár-egészségügy"}]
["sugárterápia",33500,40000,null,null,null,{"$f":"IF(--ISNUMBER(SEARCH(tev.lista,A90)),MAX($G$1:G89)+1,\"\")","v":89},{"$f":"IFERROR(INDEX($A$2:$A$117,MATCH(ROWS($G$2:G90),$G$2:$G$117,0)),\"\")","v":"sugárterápia"}]
["sürgősségi orvostan",19000,23500,null,null,null,{"$f":"IF(--ISNUMBER(SEARCH(tev.lista,A91)),MAX($G$1:G90)+1,\"\")","v":90},{"$f":"IFERROR(INDEX($A$2:$A$117,MATCH(ROWS($G$2:G91),$G$2:$G$117,0)),\"\")","v":"sürgősségi orvostan"}]
["szakápoló",1500,1800,null,null,null,{"$f":"IF(--ISNUMBER(SEARCH(tev.lista,A92)),MAX($G$1:G91)+1,\"\")","v":91},{"$f":"IFERROR(INDEX($A$2:$A$117,MATCH(ROWS($G$2:G92),$G$2:$G$117,0)),\"\")","v":"szakápoló"}]
["szakaszisztens",1500,1800,null,null,null,{"$f":"IF(--ISNUMBER(SEARCH(tev.lista,A93)),MAX($G$1:G92)+1,\"\")","v":92},{"$f":"IFERROR(INDEX($A$2:$A$117,MATCH(ROWS($G$2:G93),$G$2:$G$117,0)),\"\")","v":"szakaszisztens"}]
["szakgondozó",1500,1800,null,null,null,{"$f":"IF(--ISNUMBER(SEARCH(tev.lista,A94)),MAX($G$1:G93)+1,\"\")","v":93},{"$f":"IFERROR(INDEX($A$2:$A$117,MATCH(ROWS($G$2:G94),$G$2:$G$117,0)),\"\")","v":"szakgondozó"}]
["szemészet (gyermek és felnőtt)",33500,40000,null,null,null,{"$f":"IF(--ISNUMBER(SEARCH(tev.lista,A95)),MAX($G$1:G94)+1,\"\")","v":94},{"$f":"IFERROR(INDEX($A$2:$A$117,MATCH(ROWS($G$2:G95),$G$2:$G$117,0)),\"\")","v":"szemészet (gyermek és felnőtt)"}]
["szemészet (gyermek és felnőtt) egynapos sebészettel",null,null,null,null,null,{"$f":"IF(--ISNUMBER(SEARCH(tev.lista,A96)),MAX($G$1:G95)+1,\"\")","v":95},{"$f":"IFERROR(INDEX($A$2:$A$117,MATCH(ROWS($G$2:G96),$G$2:$G$117,0)),\"\")","v":"szemészet (gyermek és felnőtt) egynapos sebészettel"}]
["Szociális gondozó",5500,7000,null,null,null,{"$f":"IF(--ISNUMBER(SEARCH(tev.lista,A97)),MAX($G$1:G96)+1,\"\")","v":96},{"$f":"IFERROR(INDEX($A$2:$A$117,MATCH(ROWS($G$2:G97),$G$2:$G$117,0)),\"\")","v":"Szociális gondozó"}]
["társadalom-orvostan",13500,16000,null,null,null,{"$f":"IF(--ISNUMBER(SEARCH(tev.lista,A98)),MAX($G$1:G97)+1,\"\")","v":97},{"$f":"IFERROR(INDEX($A$2:$A$117,MATCH(ROWS($G$2:G98),$G$2:$G$117,0)),\"\")","v":"társadalom-orvostan"}]
["természetgyógyászat - akupresszúra",33500,40000,null,null,null,{"$f":"IF(--ISNUMBER(SEARCH(tev.lista,A99)),MAX($G$1:G98)+1,\"\")","v":98},{"$f":"IFERROR(INDEX($A$2:$A$117,MATCH(ROWS($G$2:G99),$G$2:$G$117,0)),\"\")","v":"természetgyógyászat - akupresszúra"}]
["természetgyógyászat - alternatív fizioterápia",23500,29000,null,null,null,{"$f":"IF(--ISNUMBER(SEARCH(tev.lista,A100)),MAX($G$1:G99)+1,\"\")","v":99},{"$f":"IFERROR(INDEX($A$2:$A$117,MATCH(ROWS($G$2:G100),$G$2:$G$117,0)),\"\")","v":"természetgyógyászat - alternatív fizioterápia"}]
["természetgyógyászat - alternatív mozgás– és masszázsterápiák",33500,40000,null,null,null,{"$f":"IF(--ISNUMBER(SEARCH(tev.lista,A101)),MAX($G$1:G100)+1,\"\")","v":100},{"$f":"IFERROR(INDEX($A$2:$A$117,MATCH(ROWS($G$2:G101),$G$2:$G$117,0)),\"\")","v":"természetgyógyászat - alternatív mozgás– és masszázsterápiák"}]
["természetgyógyászat - bioenergiát alkalmazó módszerek",19000,24000,null,null,null,{"$f":"IF(--ISNUMBER(SEARCH(tev.lista,A102)),MAX($G$1:G101)+1,\"\")","v":101},{"$f":"IFERROR(INDEX($A$2:$A$117,MATCH(ROWS($G$2:G102),$G$2:$G$117,0)),\"\")","v":"természetgyógyászat - bioenergiát alkalmazó módszerek"}]
["természetgyógyászat - életmód tanácsadás és terápia ",23500,29000,null,null,null,{"$f":"IF(--ISNUMBER(SEARCH(tev.lista,A103)),MAX($G$1:G102)+1,\"\")","v":102},{"$f":"IFERROR(INDEX($A$2:$A$117,MATCH(ROWS($G$2:G103),$G$2:$G$117,0)),\"\")","v":"természetgyógyászat - életmód tanácsadás és terápia "}]
["természetgyógyászat - fitoterápia",23500,29000,null,null,null,{"$f":"IF(--ISNUMBER(SEARCH(tev.lista,A104)),MAX($G$1:G103)+1,\"\")","v":103},{"$f":"IFERROR(INDEX($A$2:$A$117,MATCH(ROWS($G$2:G104),$G$2:$G$117,0)),\"\")","v":"természetgyógyászat - fitoterápia"}]
["természetgyógyászat - fülakupunktúrás addiktológiai eljárások",23500,29000,null,null,null,{"$f":"IF(--ISNUMBER(SEARCH(tev.lista,A105)),MAX($G$1:G104)+1,\"\")","v":104},{"$f":"IFERROR(INDEX($A$2:$A$117,MATCH(ROWS($G$2:G105),$G$2:$G$117,0)),\"\")","v":"természetgyógyászat - fülakupunktúrás addiktológiai eljárások"}]
["természetgyógyászat - gyógytornászok által végezhető manuálterápiás eljárások",33500,40000,null,null,null,{"$f":"IF(--ISNUMBER(SEARCH(tev.lista,A106)),MAX($G$1:G105)+1,\"\")","v":105},{"$f":"IFERROR(INDEX($A$2:$A$117,MATCH(ROWS($G$2:G106),$G$2:$G$117,0)),\"\")","v":"természetgyógyászat - gyógytornászok által végezhető manuálterápiás eljárások"}]
["természetgyógyászat - kineziológiai módszerek",19000,24000,null,null,null,{"$f":"IF(--ISNUMBER(SEARCH(tev.lista,A107)),MAX($G$1:G106)+1,\"\")","v":106},{"$f":"IFERROR(INDEX($A$2:$A$117,MATCH(ROWS($G$2:G107),$G$2:$G$117,0)),\"\")","v":"természetgyógyászat - kineziológiai módszerek"}]
["természetgyógyászat - reflexzóna terápia",23500,29000,null,null,null,{"$f":"IF(--ISNUMBER(SEARCH(tev.lista,A108)),MAX($G$1:G107)+1,\"\")","v":107},{"$f":"IFERROR(INDEX($A$2:$A$117,MATCH(ROWS($G$2:G108),$G$2:$G$117,0)),\"\")","v":"természetgyógyászat - reflexzóna terápia"}]
["természetgyógyászat - szemtréning eljárások",19000,24000,null,null,null,{"$f":"IF(--ISNUMBER(SEARCH(tev.lista,A109)),MAX($G$1:G108)+1,\"\")","v":108},{"$f":"IFERROR(INDEX($A$2:$A$117,MATCH(ROWS($G$2:G109),$G$2:$G$117,0)),\"\")","v":"természetgyógyászat - szemtréning eljárások"}]
["tibeti gyógyászati eljárások",39000,46000,null,null,null,{"$f":"IF(--ISNUMBER(SEARCH(tev.lista,A110)),MAX($G$1:G109)+1,\"\")","v":109},{"$f":"IFERROR(INDEX($A$2:$A$117,MATCH(ROWS($G$2:G110),$G$2:$G$117,0)),\"\")","v":"tibeti gyógyászati eljárások"}]
["transzfuziológia",19000,23500,null,null,null,{"$f":"IF(--ISNUMBER(SEARCH(tev.lista,A111)),MAX($G$1:G110)+1,\"\")","v":110},{"$f":"IFERROR(INDEX($A$2:$A$117,MATCH(ROWS($G$2:G111),$G$2:$G$117,0)),\"\")","v":"transzfuziológia"}]
["trópusi betegségek orvoslása",13500,16000,null,null,null,{"$f":"IF(--ISNUMBER(SEARCH(tev.lista,A112)),MAX($G$1:G111)+1,\"\")","v":111},{"$f":"IFERROR(INDEX($A$2:$A$117,MATCH(ROWS($G$2:G112),$G$2:$G$117,0)),\"\")","v":"trópusi betegségek orvoslása"}]
["ultrahang diagnoszta",33500,40000,null,null,null,{"$f":"IF(--ISNUMBER(SEARCH(tev.lista,A113)),MAX($G$1:G112)+1,\"\")","v":112},{"$f":"IFERROR(INDEX($A$2:$A$117,MATCH(ROWS($G$2:G113),$G$2:$G$117,0)),\"\")","v":"ultrahang diagnoszta"}]
["urológia",33500,40000,null,null,null,{"$f":"IF(--ISNUMBER(SEARCH(tev.lista,A114)),MAX($G$1:G113)+1,\"\")","v":113},{"$f":"IFERROR(INDEX($A$2:$A$117,MATCH(ROWS($G$2:G114),$G$2:$G$117,0)),\"\")","v":"urológia"}]
["üzemorvostan",19000,23500,null,null,null,{"$f":"IF(--ISNUMBER(SEARCH(tev.lista,A115)),MAX($G$1:G114)+1,\"\")","v":114},{"$f":"IFERROR(INDEX($A$2:$A$117,MATCH(ROWS($G$2:G115),$G$2:$G$117,0)),\"\")","v":"üzemorvostan"}]
["védőnő",1500,1800,null,null,null,{"$f":"IF(--ISNUMBER(SEARCH(tev.lista,A116)),MAX($G$1:G115)+1,\"\")","v":115},{"$f":"IFERROR(INDEX($A$2:$A$117,MATCH(ROWS($G$2:G116),$G$2:$G$117,0)),\"\")","v":"védőnő"}]
["vér oxigenizálásán alapuló terápiák",39000,46000,null,null,null,{"$f":"IF(--ISNUMBER(SEARCH(tev.lista,A117)),MAX($G$1:G116)+1,\"\")","v":116},{"$f":"IFERROR(INDEX($A$2:$A$117,MATCH(ROWS($G$2:G117),$G$2:$G$117,0)),\"\")","v":"vér oxigenizálásán alapuló terápiák"}]